Cogmind - Beta 17 @@@ ROGUE MODE // 2026.07.26 @ 14:02:58 Player: naththebg Result: Assimilated 0b10! Performance ------------- Evolutions (9) 4500 Regions Visited (33) 6600 Robots Destroyed (458) 2290 Value Destroyed (26590) 26590 Prototype IDs (68) 1360 Alien Tech Used (0) 0 Bonus (62667) 62667 TOTAL SCORE: 104007 Bonus ------- Triggered High Security 500 High Alert Combat Kills 6413 Follower Combat Kills 13070 Prayed to X0-1V1 5000 Major X0-1V1 Interference 15150 Subatomizer Sterilization 3000 Entered Garrisons 2600 Used RIF Installer 7000 Met MAIN.C 5000 Used 0b10 Conduit 2000 Win 3000 Friendly Fire -66 Cogmind --------- Core Integrity 438/1350 Matter 87/300 Energy 299/300 System Corruption 22% Temperature Cool (0) Movement Core (50) Location 0b10 Command Parts ------- > --- POWER (2) -------- (None) > --- PROPULSION (4) --- Heavy Armored Exoskeleton > --- UTILITY (15) ----- X0-1V1's Piety Tracker > --- WEAPON (4) ------- (None) > --- INVENTORY (6) ---- Light Quantum Reactor Experimental Energy Well (600) Relay Coupler [Swarmer] (49) Relay Coupler [Sentry] (47) Relay Coupler [Demolisher] (105) Relay Coupler [Behemoth] (22) Peak State ------------ > --- POWER ------------ Vortex Chain Reactor > --- PROPULSION ------- Centrium Wheel Centrium Wheel High-density Centrium Wheel High-density Centrium Wheel > --- UTILITY ---------- Advanced Power Amplifier Experimental Cooling System Huge Storage Unit Experimental Weapon Cycler Improved Utility Shielding Advanced Powered Armor Advanced Powered Armor Advanced Remote Force Field Advanced Point Defense System Advanced Point Defense System Relay Coupler [Grunt] Relay Coupler [Sentry] Relay Coupler [Proto] Relay Coupler [Proto] X0-1V1's Piety Tracker > --- WEAPON ----------- Heavy Linear Accelerator Compact Linear Accelerator Advanced Remote Datajack > --- INVENTORY -------- Hybrid Antimatter Reactor Cooled Antimatter Reactor Cooled Antimatter Reactor Light Quantum Reactor Biometal Heavy Treads Experimental Energy Well Matter Compressor Advanced Remote Force Field Advanced Point Defense System Relay Coupler [Swarmer] Relay Coupler [Swarmer] Relay Coupler [Grunt] Relay Coupler [Grunt] Relay Coupler [Sentry] Relay Coupler [Demolisher] Relay Coupler [Behemoth] Long-range Tractor Beam Advanced Remote Datajack Heavy Scimitar of Distortion [Rating: 206] Favorites ----------- Power Vortex Chain Reactor Engine Improved Deuterium Engine Power Core Nuclear Core Reactor Vortex Chain Reactor Propulsion Armored Huge Wheel Treads Light Treads Leg Aluminum Leg Wheel Armored Huge Wheel Utility X0-1V1's Piety Tracker Device X0-1V1's Piety Tracker Storage Huge Storage Unit Processor Transport Network Coupler Hackware Relay Coupler [NC] Protection Advanced Powered Armor Weapon Heavy Linear Accelerator Energy Gun Heavy Particle Gun Energy Cannon Cooled Particle Cannon Ballistic Gun Enhanced Autogun Ballistic Cannon Heavy Linear Accelerator Launcher Precision Grenade Launcher Special Weapon Advanced Remote Datajack Impact Weapon Mace Slashing Weapon Heavy Scimitar of Distortion Build | -11 -10 -9 -8 -8 -8 -7 -7 -7 -7 -6 -6 -5 -5 -5 -5 -5 -5 -4 -4 -4 -4 -3 -3 -3 -3 -2 -2 -2 -2 -1 -1 -1 -1 ------- Run | Yrd Mat Mat Mat Gar Mat Fac Gar Fac Gar Fac Gar Fac Was Fac Gar Fac Gar Fac Gar Fac Gar Res Gar Res Gar Res Gar Tes Gar Acc Gar Acc Com Slots Evolved 18 | . . 2 2 . . 2 . . . 2 . 2 . . . . . 2 . . . 2 . . . 2 . . . 2 . . . Power . | . . . . . . . . . . . . . . . . . . . . . . . . . . . . . . . . . . Propulsion 3 | . . . 1 . . . . . . . . . . . . . . 2 . . . . . . . . . . . . . . . Utility 12 | . . 1 1 . . 2 . . . 2 . 2 . . . . . . . . . 1 . . . 2 . . . 1 . . . Weapon 3 | . . 1 . . . . . . . . . . . . . . . . . . . 1 . . . . . . . 1 . . . Parts Attached 273 | 6 12 11 8 10 7 4 21 5 10 5 13 . . 38 14 . 6 13 7 . 6 1 4 8 13 5 4 2 9 4 7 3 17 Power 25 | 1 1 1 1 1 . 2 1 . 2 . 1 . . 4 2 . 2 1 . . . . 1 1 . . . . . . . . 3 Engine 8 | 1 1 1 . . . 1 1 . 1 . . . . 2 . . . . . . . . . . . . . . . . . . . Core 5 | . . . 1 1 . 1 . . . . . . . 1 . . 1 . . . . . . . . . . . . . . . . Reactor 12 | . . . . . . . . . 1 . 1 . . 1 2 . 1 1 . . . . 1 1 . . . . . . . . 3 Propulsion 40 | 2 2 3 2 4 3 . 5 1 3 . 2 . . 3 . . 1 1 . . 1 . . . 1 . . . 2 . . 1 3 Treads 19 | . 2 3 2 3 3 . 3 . . . 1 . . 1 . . . . . . . . . . . . . . . . . . 1 Leg 3 | 2 . . . . . . . . . . . . . . . . . . . . . . . . . . . . . . . . 1 Wheel 18 | . . . . 1 . . 2 1 3 . 1 . . 2 . . 1 1 . . 1 . . . 1 . . . 2 . . 1 1 Hover . | . . . . . . . . . . . . . . . . . . . . . . . . . . . . . . . . . . Flight . | . . . . . . . . . . . . . . . . . . . . . . . . . . . . . . . . . . Utility 146 | 1 5 2 1 3 1 2 10 1 3 4 6 . . 22 8 . 2 8 6 . 5 1 3 5 11 4 4 2 5 3 6 2 10 Device 55 | . 3 . . 1 1 . 3 1 1 1 1 . . 12 3 . 1 5 3 . 1 . 1 3 2 . 1 2 1 2 1 . 5 Storage 3 | 1 1 . . 1 . . . . . . . . . . . . . . . . . . . . . . . . . . . . . Processor 2 | . 1 . . . . . . . . . . . . . . . . . . . . . . 1 . . . . . . . . . Hackware 56 | . . . 1 . . 1 3 . . 1 5 . . 7 4 . 1 2 2 . 4 . 1 . 6 3 3 . 3 1 5 . 3 Protection 30 | . . 2 . 1 . 1 4 . 2 2 . . . 3 1 . . 1 1 . . 1 1 1 3 1 . . 1 . . 2 2 Artifact . | . . . . . . . . . . . . . . . . . . . . . . . . . . . . . . . . . . Weapon 62 | 2 4 5 4 2 3 . 5 3 2 1 4 . . 9 4 . 1 3 1 . . . . 2 1 1 . . 2 1 1 . 1 Energy Gun 3 | 1 1 . . 1 . . . . . . . . . . . . . . . . . . . . . . . . . . . . . Energy Cannon 6 | . 1 . . 1 . . . 1 . . . . . 1 . . . 1 . . . . . 1 . . . . . . . . . Ballistic Gun 15 | 1 . 4 . . 3 . 3 2 . . . . . 2 . . . . . . . . . . . . . . . . . . . Ballistic Cannon 18 | . 1 . 3 . . . . . 1 1 1 . . 3 4 . 1 . 1 . . . . . . . . . 1 1 . . . Launcher 6 | . 1 1 1 . . . 1 . . . 2 . . . . . . . . . . . . . . . . . . . . . . Special Weapon 13 | . . . . . . . 1 . 1 . 1 . . 3 . . . 2 . . . . . . 1 1 . . 1 . 1 . 1 Impact Weapon . | . . . . . . . . . . . . . . . . . . . . . . . . . . . . . . . . . . Slashing Weapon 1 | . . . . . . . . . . . . . . . . . . . . . . . . 1 . . . . . . . . . Piercing Weapon . | . . . . . . . . . . . . . . . . . . . . . . . . . . . . . . . . . . Special Melee Weapon . | . . . . . . . . . . . . . . . . . . . . . . . . . . . . . . . . . . Unidentified Prototypes 15 | . 1 . 1 . 1 . . 1 . . . . . 1 1 . . 2 . . . . . 6 . . . . . 1 . . . Parts Lost 87 | . 3 . . 6 1 . 9 1 3 1 6 . . 17 4 . 2 3 1 . 1 . . 1 1 . . . 2 . 1 4 20 Power 10 | . 1 . . 1 . . 1 . 1 . 1 . . 1 1 . 1 . . . . . . . . . . . . . . . 2 Propulsion 15 | . 1 . . 4 . . 2 . 1 . 1 . . 2 . . . . . . 1 . . . . . . . . . . . 3 Utility 46 | . . . . 1 1 . 4 . . 1 3 . . 8 3 . 1 3 1 . . . . 1 1 . . . 1 . 1 4 12 Weapon 16 | . 1 . . . . . 2 1 1 . 1 . . 6 . . . . . . . . . . . . . . 1 . . . 3 Highest Loss Streak 12 | . 3 . . 2 1 . 3 1 2 1 4 . . 9 1 . 1 2 1 . 1 . . 1 1 . . . 1 . 1 2 12 To Critical Strikes 1 | . . . . . . . . . . . . . . . . . . . . . 1 . . . . . . . . . . . . Average Backups 20 | 4 9 10 10 11 24 25 21 22 20 19 19 22 22 20 20 21 20 20 22 23 22 20 22 22 23 21 22 23 22 21 24 25 16 Power . | . . . . . . . . . . 1 1 1 1 . . . . . 1 1 1 1 1 1 2 1 1 1 1 2 2 2 1 Propulsion 2 | 2 3 3 3 1 . . 1 3 3 4 3 3 3 3 4 4 3 1 2 2 2 3 3 4 2 2 2 2 1 . . . . Utility 12 | . 2 3 2 7 16 13 11 14 12 10 10 15 15 12 12 12 12 13 13 14 13 12 14 13 13 13 16 17 16 16 19 20 12 Weapon 3 | . 2 2 3 2 8 12 6 4 3 4 3 3 3 4 3 4 4 4 4 4 3 3 2 3 3 3 2 2 1 1 1 1 . Tool/Special . | . . . . . . . . . . . . . . . . . . . . . . . . . . . . . . . . . . Unused Backups 79 | . 2 2 1 2 9 1 3 5 3 . 6 . . 7 1 . 2 2 1 . 1 . 9 1 2 4 2 . . . 3 . 10 Power 1 | . . . . . . . . . . . . . . . . . . . . . . . . . . . . . . . . . 1 Propulsion 14 | . 1 . 1 . . . . . . . . . . . . . . 1 . . . . 6 . 1 4 . . . . . . . Utility 46 | . . 1 . 2 9 1 1 4 1 . 1 . . 2 1 . 2 1 1 . 1 . 3 1 1 . 1 . . . 3 . 9 Weapon 16 | . 1 1 . . . . 2 1 2 . 5 . . 4 . . . . . . . . . . . . . . . . . . . Tool/Special 2 | . . . . . . . . . . . . . . 1 . . . . . . . . . . . . 1 . . . . . . Average Slot Usage (%) 84 | . 98 98 98 95 95 91 82 92 76 82 69 76 76 77 82 88 84 77 77 78 79 89 86 83 83 84 85 85 86 89 91 91 67 Engine 2 | . 13 11 4 . . 3 6 7 5 . . . . 3 3 . . . . . . . . . . . . . . . . . . Core 1 | . . . 4 8 9 3 . . . . . . . 1 . . 3 . . . . . . . . . . . . . . . . Reactor 3 | . . . . . . . . . . 6 6 5 5 . 4 11 6 10 10 10 10 9 9 8 4 4 4 4 4 4 4 4 4 Treads 4 | . 17 22 26 22 14 15 6 3 . . 4 5 5 2 . . . . . . . . . . . . . . . . . . . Wheel 8 | . . . . 2 9 7 8 11 13 13 7 5 5 4 5 5 5 10 10 10 11 14 14 14 14 12 13 13 13 16 16 16 11 Device 14 | . 7 11 9 15 17 15 12 15 13 12 8 11 11 10 15 17 20 19 15 15 15 19 15 16 14 17 17 17 17 16 15 15 17 Storage 5 | . 14 11 9 9 9 7 7 7 6 6 6 5 5 5 5 5 5 5 5 5 5 4 4 4 4 4 4 4 4 4 4 4 3 Hackware 17 | . . . 8 2 . 6 9 15 9 10 13 17 17 22 17 23 23 21 20 21 24 23 23 23 27 26 26 24 25 27 28 27 13 Protection 8 | . . 10 9 8 9 7 7 7 11 19 8 5 5 6 10 11 7 4 9 10 5 8 9 5 7 9 13 13 11 10 11 11 7 Ballistic Gun 4 | . 4 28 12 . 17 23 20 22 . . . . . . 2 . . . . . . . . . . . . . . . . . . Ballistic Cannon 5 | . 6 1 13 17 3 . . . 6 6 5 5 5 6 11 11 6 4 4 5 4 4 4 4 3 4 3 3 3 6 7 8 5 Special Weapon 2 | . . . . . . . . . 6 6 1 5 5 4 2 . . . . . . 4 4 3 3 4 4 4 4 4 4 4 3 Peak Build Rating 206 | 6 20 31 38 46 49 60 64 65 75 80 81 81 81 95 128 109 112 122 122 122 131 139 140 151 154 171 167 171 176 186 189 189 206 Average Rating 102 | 4 10 29 35 38 47 59 57 64 68 77 67 81 80 87 102 109 105 117 119 121 122 138 134 136 149 168 165 166 169 182 186 185 148 On Entrance 102 | . 6 20 31 37 46 49 60 64 65 74 75 81 81 81 88 109 109 112 113 122 122 131 139 132 151 154 166 166 157 173 185 189 181 Avg Prop Armor Cover (%) 9 | . . . . 7 10 8 6 6 . . 6 5 5 6 . . . . . . . . . 1 1 . . . . . . . 33 Naked Turns 15 | . . . . . . . . . . . . . . . . . . . . . . . . . . . . . . . . . 15 Heaviest Build 223 | 12 22 35 44 115 115 116 121 110 134 141 144 143 143 170 215 185 185 180 186 186 186 174 178 187 197 201 201 204 204 207 207 213 223 Greatest Support 95 | 20 40 40 60 60 12 12 40 38 44 44 44 28 28 95 28 28 28 56 56 56 68 68 68 68 68 68 68 68 76 76 76 76 72 Greatest Overweight (x) 12 | . 1 . . 9 9 9 9 3 12 3 6 5 5 7 7 6 6 3 3 3 6 2 2 3 3 2 2 2 2 2 2 2 7 Average Overweight (x) 2 | . . . . 1 8 8 3 2 2 3 3 5 5 4 5 6 5 2 2 3 2 2 2 2 2 2 2 2 2 2 2 2 1 Largest Inventory Capacity 26 | 8 10 11 11 26 26 26 26 26 26 26 26 26 26 26 26 26 26 26 26 26 26 26 26 26 26 26 26 26 26 26 26 26 26 Average Capacity 23 | 6 9 10 11 13 26 26 26 26 26 26 26 26 26 26 26 26 26 26 26 26 26 26 26 26 26 26 26 26 26 26 26 26 23 Most Carried 26 | 6 10 11 11 26 26 26 26 26 26 26 26 26 26 26 26 26 26 26 26 26 26 24 26 26 26 26 26 26 26 25 26 26 26 Average Carried 22 | 4 9 10 10 11 25 25 23 25 25 25 24 26 26 24 25 26 25 24 25 25 25 23 25 25 25 24 25 25 24 22 24 25 17 Final Capacity 26 | 8 10 11 11 26 26 26 26 26 26 26 26 26 26 26 26 26 26 26 26 26 26 26 26 26 26 26 26 26 26 26 26 26 6 Final Carried 26 | 6 10 11 11 26 26 26 26 26 26 25 26 26 26 26 26 26 26 26 26 26 25 23 26 26 26 24 26 26 25 20 26 26 6 Class Distribution -------------------- 46% | Botlord-Tank 20% | Botlord-Mutant 7% | Hauler-Tank 7% | Bothacker-Tank 5% | Mutant 5% | Scavenger-Tank Dominant Class ---------------- Mutant | -10/Materials Tank | -9/Materials Scavenger-Tank | -8/Materials Scavenger-Tank | -8/Garrison Hauler-Tank | -8/Materials Hauler-Tank | -7/Factory Bothacker-Tank | -7/Garrison Bothacker-Tank | -7/Factory Botlord-Tank | -7/Garrison Botlord-Tank | -6/Factory Botlord-Tank | -6/Garrison Botlord-Tank | -5/Factory Botlord-Tank | -5/Waste Botlord-Tank | -5/Factory Botlord-Tank | -5/Garrison Botlord-Mutant | -5/Factory Botlord-Mutant | -5/Garrison Botlord-Mutant | -4/Factory Botlord-Mutant | -4/Garrison Botlord-Mutant | -4/Factory Botlord-Mutant | -4/Garrison Botlord-Tank | -3/Research Botlord-Tank | -3/Garrison Botlord-Tank | -3/Research Botlord-Tank | -3/Garrison Botlord-Tank | -2/Research Botlord-Tank | -2/Garrison Botlord-Tank | -2/Testing Botlord-Tank | -2/Garrison Botlord-Tank | -1/Access Botlord-Tank | -1/Garrison Botlord-Tank | -1/Access Botlord-Tank | -1/Command Resources | -11 -10 -9 -8 -8 -8 -7 -7 -7 -7 -6 -6 -5 -5 -5 -5 -5 -5 -4 -4 -4 -4 -3 -3 -3 -3 -2 -2 -2 -2 -1 -1 -1 -1 ----------- Run | Yrd Mat Mat Mat Gar Mat Fac Gar Fac Gar Fac Gar Fac Was Fac Gar Fac Gar Fac Gar Fac Gar Res Gar Res Gar Res Gar Tes Gar Acc Gar Acc Com Matter Collected 27649 | 221 336 366 365 806 634 632 3384 584 1491 382 838 . . 2896 2230 . 931 770 978 201 1384 . 250 . 1388 1412 394 548 1180 285 942 805 1016 Remotely 2130 | . . . . . . . . . . . . . . 1015 559 . . . 287 . . . . . 269 . . . . . . . . Salvage Created 18457 | . 672 507 274 742 848 699 2359 281 1051 225 1166 . . 2187 750 . 679 624 433 . 435 . . 148 567 751 165 344 870 232 378 362 708 Parts 851 | . 52 44 11 61 36 42 109 23 37 8 48 . . 98 23 . 40 18 19 . 23 . . 12 28 22 10 9 17 14 13 17 17 Haulers Intercepted 8 | . 2 . 1 . 3 . . 1 . . . . . . . . . 1 . . . . . . . . . . . . . . . Recyclers Shooed 9 | . . . . . . 1 . 1 . . . . . 4 . . . 1 . . . . . . . . . . . . . . 2 Parts Field Recycled . | . . . . . . . . . . . . . . . . . . . . . . . . . . . . . . . . . . Retrieved Matter . | . . . . . . . . . . . . . . . . . . . . . . . . . . . . . . . . . . Parts Self-Destructed . | . . . . . . . . . . . . . . . . . . . . . . . . . . . . . . . . . . Prevented . | . . . . . . . . . . . . . . . . . . . . . . . . . . . . . . . . . . Parts Restored . | . . . . . . . . . . . . . . . . . . . . . . . . . . . . . . . . . . Kills | -11 -10 -9 -8 -8 -8 -7 -7 -7 -7 -6 -6 -5 -5 -5 -5 -5 -5 -4 -4 -4 -4 -3 -3 -3 -3 -2 -2 -2 -2 -1 -1 -1 -1 ------- Run | Yrd Mat Mat Mat Gar Mat Fac Gar Fac Gar Fac Gar Fac Was Fac Gar Fac Gar Fac Gar Fac Gar Res Gar Res Gar Res Gar Tes Gar Acc Gar Acc Com Combat Hostiles Destroyed 382 | . 11 21 5 32 14 8 36 4 24 3 29 . . 32 16 . 25 9 12 . 13 . . 3 15 11 4 5 19 4 10 6 11 Melee 3 | . . 1 . . . . . . . . . . . . . . . . . . . . . . 2 . . . . . . . . Guns 90 | . 5 13 5 4 13 8 35 4 . . . . . 2 1 . . . . . . . . . . . . . . . . . . Cannons 233 | . 2 . . 24 1 . . . 23 3 23 . . 16 13 . 16 9 9 . 9 . . 3 12 11 4 5 19 4 10 6 11 AOE 53 | . 4 7 . 4 . . 1 . . . 6 . . 14 2 . 9 . 3 . 3 . . . . . . . . . . . . Classes Destroyed 24 | . 8 2 1 2 . . 3 . 1 . 1 . . 2 1 . 1 . . . . . . . . . . 1 . . 1 . . Worker 14 | . . 1 3 . 1 1 . . . . . . . 1 . . . 1 . . . . . . . 3 . . . . . 3 . Builder 8 | . 1 . . . . 2 . 1 . . . . . 4 . . . . . . . . . . . . . . . . . . . Tunneler 2 | . 1 . . . . . . . . . . . . . . . . . . . . . . . . . . . . . . 1 . Hauler 8 | . 2 . 1 . 3 . . 1 . . . . . . . . . 1 . . . . . . . . . . . . . . . Recycler 18 | . 1 . . . 1 3 . . . 1 . . . 8 . . . 1 . . . . . . . 1 . . . . . . 2 Mechanic 2 | . . . . . . . . . . . . . . 2 . . . . . . . . . . . . . . . . . . . Operator 2 | . 1 . . . . . . 1 . . . . . . . . . . . . . . . . . . . . . . . . . Drone 1 | . . . . . . . . . 1 . . . . . . . . . . . . . . . . . . . . . . . . Watcher 17 | . 3 3 . 1 2 1 . 1 . . . . . 1 . . . 1 . . 1 . . . 1 . . . . 1 . 1 . Swarmer 76 | . 2 11 . 10 4 3 3 2 . 1 4 . . 5 4 . 8 2 3 . 6 . . . 3 . 1 . . . 4 . . Cutter 9 | . . . . . . . 1 . . . 2 . . . . . 4 . . . . . . . 2 . . . . . . . . Saboteur 1 | . . . . . . . . . . . 1 . . . . . . . . . . . . . . . . . . . . . . Grunt 119 | . 9 5 3 12 6 2 12 . 15 . 13 . . 2 8 . 4 4 4 . . . . . 1 2 . 4 8 1 1 3 . Brawler 7 | . . . . . . . 1 . . . . . . 2 1 . . . 1 . . . . . . 1 . . 1 . . . . Duelist 7 | . . . . . . . 5 . 1 . . . . . . . . . . . . . . . . . . . . . . 1 . Researcher 1 | . . . . . . . . . . . . . . . . . . . . . . . . . . . . 1 . . . . . Sentry 41 | . . 5 . 2 3 2 8 . 2 1 6 . . . 1 . 2 . 1 . . . . . 1 1 2 . 3 . . 1 . Specialist 11 | . . . 2 4 . . 3 . 1 . . . . . . . . . . . . . . . . 1 . . . . . . . Hunter 33 | . . . . 1 1 . 1 1 . . . . . 7 2 . 1 4 . . . . . . 3 1 . 1 3 . 1 1 5 Programmer 67 | . . . . 3 . 1 2 1 4 1 3 . . 11 . . 6 . 2 . 6 . . 3 4 4 1 . 4 3 4 1 3 Heavy 2 | . . . . . . . . . . . . . . 1 . . . . . . . . . . . 1 . . . . . . . Behemoth 3 | . . . . . . . . . . . . . . . . . 1 . . . 1 . . . 1 . . . . . . . . M Guard 1 | . . . . . . . . . . . . . . . . . . . . . . . . . . . . . . . . . 1 Combat Programmer 2 | . . . . . . . . . . . . . . . . . . . . . . . . . . . . . . . . . 2 Striker 1 | . . . . . . . . . . . . . . . . . . . . . . . . . . . . . . . 1 . . Executioner 2 | . . . . . . . . . . . . . . . 1 . . . 1 . . . . . . . . . . . . . . Thug 4 | . . . . . . . . . . . . . . 4 . . . . . . . . . . . . . . . . . . . Best Kill Streak 8 | . 4 5 8 5 5 5 8 2 3 1 6 . . 7 4 . 6 7 4 . 3 . . 2 6 6 2 2 6 2 3 3 3 Combat Bots Only 8 | . 4 4 5 5 4 3 8 2 3 1 6 . . 5 4 . 6 6 4 . 3 . . 2 6 4 2 2 6 2 3 2 2 Max Kills in Single Turn 4 | . 3 3 2 2 2 3 1 1 1 1 2 . . 4 2 . 3 2 3 . 2 . . 1 1 2 1 1 1 1 1 2 1 Gunslinging . | . . . . . . . . . . . . . . . . . . . . . . . . . . . . . . . . . . Exploded 4 | . 3 3 . 2 . . 1 . . . 2 . . 4 2 . 3 . 3 . 2 . . . . . . . . . . . . Melee 1 | . . 1 . . . . . . . . . . . . . . . . . . . . . . 1 . . . . . . . . Uniques/NPCs Destroyed . | . . . . . . . . . . . . . . . . . . . . . . . . . . . . . . . . . . Combat | -11 -10 -9 -8 -8 -8 -7 -7 -7 -7 -6 -6 -5 -5 -5 -5 -5 -5 -4 -4 -4 -4 -3 -3 -3 -3 -2 -2 -2 -2 -1 -1 -1 -1 -------- Run | Yrd Mat Mat Mat Gar Mat Fac Gar Fac Gar Fac Gar Fac Was Fac Gar Fac Gar Fac Gar Fac Gar Res Gar Res Gar Res Gar Tes Gar Acc Gar Acc Com Hostile Shots Fired 2627 | . 67 45 35 134 28 53 287 29 164 22 189 3 . 265 162 . 82 110 69 12 111 . . 8 150 50 43 19 108 22 43 78 239 Missed 811 | . 17 13 8 34 12 24 97 7 45 6 56 2 . 88 45 . 25 49 20 5 38 . . . 46 20 9 7 25 7 16 18 72 Intercepted 28 | . . . . . . . . . . . . . . . . . . . . . . . . . . . . . . . . . 28 Hits 1816 | . 50 32 27 100 16 29 190 22 119 16 133 1 . 177 117 . 57 61 49 7 73 . . 8 104 30 34 12 83 15 27 60 167 Melee 28 | . . . . . . . 8 . 11 . 3 . . . . . 1 . 1 . . . . . 4 . . . . . . . . Projectile 1788 | . 50 32 27 100 16 29 182 22 108 16 130 1 . 177 117 . 56 61 48 7 73 . . 8 100 30 34 12 83 15 27 60 167 AOE 16 | . . . . . . . . . . . 1 . . . . . . . . . . . . . . . . . . . 1 4 10 Critical Strikes 80 | . . . . 6 3 . 7 1 7 . 5 . . 9 7 . 2 1 4 . 1 . . . 5 4 . 1 3 . 1 2 11 Actively Blocked 1 | . . . . . . . . . . . . . . . . . . . . . . . . . . . . . 1 . . . . Part Disruptions 6 | . . . . . . . . . 1 . . . . . . . . . . . . . . . . . . . . . . . 5 Actively Blocked 1 | . . . . . . . . . . . . . . . . . . . . . . . . . . . . . . . . . 1 Damage Taken 27296 | . 605 450 354 1496 268 316 2374 360 967 166 1529 10 . 3340 1276 . 1047 542 532 76 823 21 . 98 1243 494 555 667 1234 185 540 1248 4480 Core 2854 | . 80 25 15 145 15 46 101 60 166 . 194 . . 392 126 . 34 15 70 . 80 4 . . 35 32 . 291 16 13 . 84 815 Absorbed by Shields 9046 | . . . . . . . . . 646 . 42 10 . 348 684 . 40 572 558 70 695 21 . 93 854 450 406 256 911 176 361 785 1068 Redirected to Shielding 427 | . . . . . . . . . 62 31 50 . . . . . . . . . . 7 . . . 6 . 50 56 17 44 39 65 Ignored by Resistances 649 | . . . . . . . . . . . . . . 175 266 . 113 . . . . . . . . . . . . . . 74 21 Regen/Repaired (Parts) 1064 | . . . . . . . . . . 39 . . . 306 . . . . . . . . . . 6 52 . 56 281 41 99 184 . Core Remaining (%) 69 | 100 68 91 . . 60 . . . 17 . 67 . . . . . 60 . . . 81 . . . 96 . . . 91 . . . 32 Volleys Fired 1806 | . 50 35 18 82 42 31 174 28 105 15 100 3 6 149 91 . 62 53 33 6 83 1 35 8 70 83 31 45 95 27 55 89 101 Largest 3 | . 2 3 3 3 3 3 3 3 1 1 2 1 1 2 3 . 2 1 1 1 1 1 1 1 1 1 1 1 1 2 2 1 2 Hottest 177 | . 125 75 111 177 177 75 115 75 90 65 101 5 5 112 124 . 116 70 70 70 70 7 70 70 70 70 70 70 70 128 128 70 128 Shots Fired 2687 | . 98 100 51 183 126 93 484 78 109 15 103 3 6 170 148 . 93 54 33 6 84 1 35 8 71 83 31 46 95 28 58 90 104 Gun 1044 | . 63 97 43 59 108 93 472 76 . . . . . 18 15 . . . . . . . . . . . . . . . . . . Cannon 1206 | . 32 . 6 122 18 . . . 97 11 97 . . 100 117 . 72 37 29 4 62 . 1 5 43 53 17 24 68 12 40 52 87 Launcher 50 | . 3 3 2 2 . . 5 . . . 4 . . 15 . . 5 4 1 . 6 . . . . . . . . . . . . Special 387 | . . . . . . . 7 2 12 4 2 3 6 37 16 . 16 13 3 2 16 1 34 3 28 30 14 22 27 16 18 38 17 Kinetic 1993 | . 44 97 49 102 108 93 466 76 77 11 60 . . 118 109 . 68 37 29 4 43 . 1 5 43 53 17 24 68 12 40 52 87 Thermal 228 | . 22 . . 79 18 . 6 . 20 . 37 . . . 23 . 4 . . . 19 . . . . . . . . . . . . Explosive 50 | . 3 3 2 2 . . 5 . . . 4 . . 15 . . 5 4 1 . 6 . . . . . . . . . . . . Electromagnetic 29 | . 29 . . . . . . . . . . . . . . . . . . . . . . . . . . . . . . . . Robot Hit Streak 75 | . 7 15 6 12 9 8 75 6 13 15 44 5 5 13 12 . 13 9 7 7 14 15 49 55 13 22 13 16 12 13 13 17 18 Robot Miss Streak 13 | . 5 7 6 13 5 4 4 6 2 2 2 . 1 4 4 . 3 2 2 1 2 . . . 2 3 2 2 2 2 3 3 3 Penetration Max 1 | . . . . . . . . . . . . . . 1 . . . 1 . . . . . . . 1 . . 1 . . 1 1 Secondary Targets 12 | . . 1 . . 2 2 7 . . . . . . . . . . . . . . . . . . . . . . . . . . Max Gunslinging Chain 1 | . . 1 . . 1 1 1 . . . . . . . . . . . . . . . . . . . . . . . . . . Shots Hit Robots 1842 | . 51 55 37 117 71 57 364 35 82 10 80 3 5 111 99 . 63 37 21 5 67 1 34 6 56 63 24 35 70 20 45 49 69 Core Hits 804 | . 29 37 19 113 35 26 141 14 31 4 38 . . 77 34 . 35 14 14 . 26 . . 2 18 15 4 7 22 2 12 11 24 Critical Kills 6 | . . . . . 1 . 1 . 1 . . . . . 1 . . . . . 2 . . . . . . . . . . . . Critical Parts Destroyed 3 | . . . . . . . 3 . . . . . . . . . . . . . . . . . . . . . . . . . . Critical Strikes 95 | . . . . 3 2 . 5 . 10 3 7 . . 13 5 . 7 4 1 1 5 . . . 4 6 1 2 7 2 1 2 4 Burn 4 | . . . . 3 1 . . . . . . . . . . . . . . . . . . . . . . . . . . . . Meltdown 4 | . . . . . 1 . . . 1 . . . . . . . . . . . 2 . . . . . . . . . . . . Destroy 6 | . . . . . . . 5 . . . . . . . 1 . . . . . . . . . . . . . . . . . . Blast 81 | . . . . . . . . . 9 3 7 . . 13 4 . 7 4 1 1 3 . . . 4 6 1 2 7 2 1 2 4 Melee Attacks 8 | . . . . . . . . . 2 . . . . . . . . . . . . . . . 6 . . . . . . . . Impact 2 | . . . . . . . . . 2 . . . . . . . . . . . . . . . . . . . . . . . . Slashing 6 | . . . . . . . . . . . . . . . . . . . . . . . . . 6 . . . . . . . . Piercing . | . . . . . . . . . . . . . . . . . . . . . . . . . . . . . . . . . . Sneak Attacks . | . . . . . . . . . . . . . . . . . . . . . . . . . . . . . . . . . . Combat Hostiles . | . . . . . . . . . . . . . . . . . . . . . . . . . . . . . . . . . . Follow-up Attacks . | . . . . . . . . . . . . . . . . . . . . . . . . . . . . . . . . . . Damage Inflicted 67553 | 1 918 1482 689 2894 1324 1032 5892 534 4371 429 4581 . . 6889 2870 . 3040 2154 1929 125 4559 . . 312 2441 3505 908 1267 4364 644 2417 2895 3087 Guns 11574 | . 424 1161 582 494 1106 1032 5664 534 . . . . . 380 197 . . . . . . . . . . . . . . . . . . Cannons 49555 | . 344 . 106 2131 218 . . . 4335 429 3940 . . 4416 2673 . 2303 2054 1659 125 3351 . . 301 2169 3505 908 1267 4364 644 2417 2820 3076 Explosions 6118 | . 144 316 1 269 . . 228 . . . 641 . . 2093 . . 737 100 270 . 1208 . . . 36 . . . . . . 75 . Melee 230 | . . . . . . . . . 36 . . . . . . . . . . . . . . . 194 . . . . . . . . Ramming 76 | 1 6 5 . . . . . . . . . . . . . . . . . . . . . 11 42 . . . . . . . 11 Kinetic 56714 | . 300 1161 688 1622 1163 1032 5547 534 3880 429 2999 . . 4796 2258 . 2190 2054 1659 125 2806 . . 301 2169 3505 908 1267 4364 644 2417 2820 3076 Thermal 4263 | . 241 . . 1003 161 . 117 . 455 . 941 . . . 612 . 113 . . . 545 . . . . . . . . . . 75 . Explosive 5804 | . 144 316 1 269 . . 228 . . . 641 . . 1854 . . 737 100 270 . 1208 . . . 36 . . . . . . . . Electromagnetic 466 | . 227 . . . . . . . . . . . . 239 . . . . . . . . . . . . . . . . . . . Impact 36 | . . . . . . . . . 36 . . . . . . . . . . . . . . . . . . . . . . . . Slashing 194 | . . . . . . . . . . . . . . . . . . . . . . . . . 194 . . . . . . . . Piercing . | . . . . . . . . . . . . . . . . . . . . . . . . . . . . . . . . . . Highest Corruption 32 | . . 2 . 1 1 . 32 23 24 . 1 . 26 26 12 . 3 . 19 . 1 . . 3 9 . . 3 6 . . 11 22 Average Corruption 9 | . . 2 . 1 1 . 13 22 23 . 1 . 8 10 12 . 2 . 19 . 1 . . 2 6 . . 3 5 . . 4 14 Corruption Purged 26 | . . . . . . . . . . . . . . 26 . . . . . . . . . . . . . . . . . . . Corruption Blocked . | . . . . . . . . . . . . . . . . . . . . . . . . . . . . . . . . . . Effects 424 | . . 8 . 1 . . 48 39 70 . 2 . 4 108 2 . 25 . 8 . 8 . . 3 14 . . 4 37 . . 12 31 Message Errors 100 | . . 3 . . . . 12 7 21 . 1 . 2 18 1 . 8 . 2 . . . . 2 4 . . 1 11 . . 3 4 Matter Fused 100 | . . 1 . 1 . . 10 9 16 . 1 . . 31 . . 6 . 6 . 1 . . 1 1 . . . 8 . . 1 7 Heat Flow Errors 64 | . . 1 . . . . 8 4 13 . . . . 15 . . 4 . . . 2 . . . 3 . . 1 7 . . 3 3 Energy Discharges 52 | . . 1 . . . . 7 7 3 . . . . 17 . . 2 . . . 3 . . . 2 . . 1 3 . . 2 4 Parts Rejected 5 | . . . . . . . 1 . . . . . 1 1 . . . . . . . . . . . . . . . . . 2 . Parts Fused 4 | . . . . . . . . . 1 . . . . 1 . . . . . . . . . . . . . . . . . 1 1 Data Loss (minor) 45 | . . 2 . . . . 3 7 7 . . . 1 9 1 . 1 . . . 1 . . . 2 . . . 3 . . . 8 Data Loss (major) 15 | . . . . . . . 1 . 1 . . . . 5 . . 2 . . . . . . . 1 . . . 2 . . . 3 Misfires 16 | . . . . . . . 1 1 5 . . . . 5 . . 1 . . . 1 . . . . . . 1 1 . . . . Alerts 6 | . . . . . . . . 1 . . . . . 4 . . . . . . . . . . 1 . . . . . . . . Misdirections 2 | . . . . . . . . . . . . . . 2 . . . . . . . . . . . . . . . . . . . Weapon Failures 15 | . . . . . . . 5 3 3 . . . . . . . 1 . . . . . . . . . . . 2 . . . 1 Overload Shots 2 | . . . . . . . . . 1 . 1 . . . . . . . . . . . . . . . . . . . . . . Overflow Damage 5188 | . 41 . . 22 . . 27 . 570 59 437 . . 823 17 . 144 165 74 . 542 . . 61 168 562 8 109 349 246 147 507 110 Projectiles 4928 | . . . . 12 . . . . 543 59 405 . . 796 17 . 113 165 59 . 492 . . 61 168 562 8 109 349 246 147 507 110 Explosions 233 | . 41 . . 10 . . 27 . . . 32 . . 27 . . 31 . 15 . 50 . . . . . . . . . . . . Melee 27 | . . . . . . . . . 27 . . . . . . . . . . . . . . . . . . . . . . . . Knockbacks 259 | . . . . 47 1 . . . 25 2 9 . . 25 15 . 12 10 6 . 10 . . . 10 14 2 7 19 2 7 13 23 Impact 1 | . . . . . . . . . . . . . . . . . . . . . . . . . . . . . . . . . 1 Kinetic 239 | . . . . 47 1 . . . 20 2 6 . . 23 14 . 12 10 6 . 9 . . . 8 14 2 7 18 2 7 12 19 Secondary 19 | . . . . . . . . . 5 . 3 . . 2 1 . . . . . 1 . . . 2 . . . 1 . . 1 3 Self-Inflicted Damage 604 | . 20 92 . 22 . . . . . . . . . 148 . . 125 . 45 . 50 . . 5 62 . . . . . . 30 5 Shots 20 | . 1 3 . 1 . . . . . . . . . 5 . . 4 . 1 . 3 . . . 1 . . . . . . 1 . Rammed 7 | . 2 1 . . . . . . . . . . . . . . . . . . . . . 1 2 . . . . . . . 1 Targets Rammed 12 | 2 4 2 . . . . . . . . . . . . . . . . . . . . . 1 2 . . . . . . . 1 Kicked 4 | 2 2 . . . . . . . . . . . . . . . . . . . . . . . . . . . . . . . . Crushed 1 | . . 1 . . . . . . . . . . . . . . . . . . . . . . . . . . . . . . . Highest Temperature 515 | . 105 128 170 359 269 26 489 211 247 . 105 . . 326 284 . 247 397 310 . 238 . 10 10 213 7 . 515 295 . . 194 276 Average Temperature 71 | . 34 33 89 77 62 5 90 92 80 . 28 . . 82 126 . 51 117 174 . 122 . 7 10 25 7 . 215 103 . . 113 91 Received Heat Transfer 3720 | . 234 93 90 486 135 48 591 21 283 30 345 4 . 278 237 . 61 48 74 4 37 . . . 65 49 38 34 87 12 52 52 232 Effects 17 | . . . . 5 1 . 4 . . . . . . 6 . . . . . . . . . . . . . 1 . . . . . Energy Bleed 3 | . . . . 1 1 . 1 . . . . . . . . . . . . . . . . . . . . . . . . . . Interference 12 | . . . . 3 . . 3 . . . . . . 6 . . . . . . . . . . . . . . . . . . . Matter Decay 1 | . . . . 1 . . . . . . . . . . . . . . . . . . . . . . . . . . . . . Damage (core) 1 | . . . . . . . . . . . . . . . . . . . . . . . . . . . . 1 . . . . . Siege Activations . | . . . . . . . . . . . . . . . . . . . . . . . . . . . . . . . . . . Martial Activations . | . . . . . . . . . . . . . . . . . . . . . . . . . . . . . . . . . . Shielding Activations . | . . . . . . . . . . . . . . . . . . . . . . . . . . . . . . . . . . Robots Disrupted . | . . . . . . . . . . . . . . . . . . . . . . . . . . . . . . . . . . Combat Hostiles . | . . . . . . . . . . . . . . . . . . . . . . . . . . . . . . . . . . Robots Corrupted 2 | . . . . . . . . . 1 . . . . . . . . . . . 1 . . . . . . . . . . . . Combat Hostiles 2 | . . . . . . . . . 1 . . . . . . . . . . . 1 . . . . . . . . . . . . Parts Fried 1 | . . . . . . . . . . . . . . . . . . . . . . . . . . . . . . . . 1 . Impact Corruptions 8 | . . . . . . . . . 4 . . . . . . . . . . . 3 . . . . . . . . . . 1 . Robots Melted 4 | . . . . . 1 . . . 1 . . . . . . . . . . . 2 . . . . . . . . . . . . Combat Hostiles . | . . . . . . . . . . . . . . . . . . . . . . . . . . . . . . . . . . Parts Melted 15 | . 1 . . 1 2 . 1 . . . . . . . 2 . 4 . . . 1 . . . . 2 . . 1 . . . . Heat Transferred 6398 | . 518 . . 1507 333 . 140 . 629 . 1295 . . . 950 . 150 . . . 850 . . . . . . . . . . 26 . Parts Sabotaged . | . . . . . . . . . . . . . . . . . . . . . . . . . . . . . . . . . . Parts Stolen . | . . . . . . . . . . . . . . . . . . . . . . . . . . . . . . . . . . Parts Stripped 7 | . . . . . . . . . . . . . . . . . . . . . . . . . 7 . . . . . . . . Power Chain Reactions . | . . . . . . . . . . . . . . . . . . . . . . . . . . . . . . . . . . Alert | -11 -10 -9 -8 -8 -8 -7 -7 -7 -7 -6 -6 -5 -5 -5 -5 -5 -5 -4 -4 -4 -4 -3 -3 -3 -3 -2 -2 -2 -2 -1 -1 -1 -1 ------- Run | Yrd Mat Mat Mat Gar Mat Fac Gar Fac Gar Fac Gar Fac Was Fac Gar Fac Gar Fac Gar Fac Gar Res Gar Res Gar Res Gar Tes Gar Acc Gar Acc Com Maximum Alert Level 5 | . . 1 . 3 3 1 3 2 3 2 5 3 1 2 4 3 4 3 4 2 4 3 3 2 2 4 4 4 4 4 5 5 4 Low Security (%) 20 | 100 100 70 100 22 . 64 16 . . . . . 14 67 . . . 1 . . . . . . 19 29 . . . . . . . Level 1 13 | . . 29 . 14 15 35 13 . 15 . . . 85 19 8 . . 13 . . 5 . . 61 47 22 . . . . . . 42 Level 2 21 | . . . . 37 75 . 30 100 22 100 4 . . 13 10 . 13 64 45 100 11 . . 38 32 24 . . . . . . 40 Level 3 25 | . . . . 25 8 . 39 . 62 . 30 100 . . 41 100 46 20 47 . 31 100 100 . . 22 24 71 16 95 24 30 7 Level 4 17 | . . . . . . . . . . . 47 . . . 38 . 39 . 7 . 51 . . . . 1 75 28 83 4 59 50 9 Level 5 1 | . . . . . . . . . . . 17 . . . . . . . . . . . . . . . . . . . 15 1 . High Security . | . . . . . . . . . . . . . . . . . . . . . . . . . . . . . . . . 18 . Max Security . | . . . . . . . . . . . . . . . . . . . . . . . . . . . . . . . . . . Sterilizations 2 | . 1 . . . 1 . . . . . . . . . . . . . . . . . . . . . . . . . . . . Peak Influence 1929 | . 105 330 116 876 807 301 1059 559 1093 696 1929 1014 295 491 1453 762 1235 768 1174 669 1531 979 887 498 514 1161 1570 1400 1522 1112 1729 1916 1120 Initial 1120 | . . 1 59 . 418 301 101 555 329 573 487 1012 295 129 299 762 526 648 529 616 358 861 726 498 195 211 866 882 1042 912 844 1036 1120 Average 670 | . 22 159 41 507 572 191 599 484 705 556 1286 930 245 187 954 759 1018 539 816 563 1056 874 832 367 332 438 1303 1016 1266 961 1361 1328 523 Influence Increases 23616 | . 389 627 171 959 761 294 1148 320 874 383 1632 2 . 1678 1294 . 889 1059 715 136 1403 138 161 219 727 1600 804 868 810 482 1045 1639 389 Destroy 0b10 Robot/C 11279 | . 220 420 100 660 460 180 760 180 580 120 860 . . 780 660 . 535 360 315 60 600 60 . 165 324 552 288 336 384 192 408 540 180 Destroy 0b10 Robot/NC 541 | . 45 20 20 10 65 35 25 20 25 5 10 . . 85 10 . . 32 . . 12 . . 8 3 27 . 18 . 6 . 42 18 Destroy Leader 1438 | . 60 116 22 20 124 52 40 54 40 30 30 . . 114 30 . 58 94 32 8 48 8 . 32 32 112 30 48 30 26 48 76 24 Allied During Kill 4752 | . . . . 18 68 12 20 30 44 44 328 . . 82 175 . 68 163 157 38 424 68 . . 137 687 314 326 146 224 456 655 68 Successful Hack 186 | . 19 . 13 . 6 . . 36 14 12 . . . . 14 . 14 12 . 22 . . 11 4 6 . . . . . . . 3 Disable Machine 879 | . 30 . . . 30 . 30 . 30 120 45 . . 225 75 . 15 108 . . . . . . 27 18 . 9 18 18 . 72 9 Anti-Garrison Action 2007 | . . . . 200 . . 200 . 100 . 200 . . . 250 . 125 . 113 . 151 . 150 . 128 90 90 . 180 . 30 . . Destroy Structure 1931 | . 15 26 16 51 8 . 28 . 26 37 39 2 . 242 20 . 74 278 62 8 156 2 . 10 46 114 73 122 43 16 103 254 60 Lose Combat Pursuer 603 | . . 45 . . . 15 45 . 15 15 120 . . 150 60 . . 12 36 . 12 . . . 24 . 9 9 9 . . . 27 Influence Decreases 23372 | . 384 491 312 100 957 812 234 908 252 780 399 1087 659 1435 269 701 406 1538 297 798 384 700 243 845 611 822 389 1048 678 948 372 1617 1896 Entered New Map 11407 | . . 4 82 . 441 362 44 504 142 520 209 917 549 56 129 691 226 587 227 558 154 670 243 389 66 166 289 688 348 610 212 693 631 Time Decay 5507 | . 374 337 230 . 356 410 . 334 . 230 . 20 70 626 . 10 . 416 . 70 . 30 . 246 . 416 . 160 . 278 . 404 490 Lost Part 840 | . 10 . . 60 10 . 90 10 30 10 60 . . 160 40 . 20 30 10 . 10 . . 10 10 . . . 20 . 10 40 200 Lost Ally 3394 | . . . . 40 . 40 100 60 80 20 130 . 40 144 100 . 160 80 60 20 220 . . 200 160 240 100 200 310 60 150 480 200 Purge Threat 2224 | . . 150 . . 150 . . . . . . 150 . 449 . . . 425 . 150 . . . . 375 . . . . . . . 375 Squads Dispatched 98 | . 2 4 5 . 2 4 . 7 . 2 . . . 12 . . . 5 . . . 1 . 2 . 13 . 11 . 5 . 18 5 Investigation 8 | . 1 2 1 . 1 . . 1 . . . . . 1 . . . . . . . . . . . . . 1 . . . . . Extermination 22 | . . . . . . 1 . 2 . 1 . . . 6 . . . 2 . . . . . 1 . 3 . 1 . 1 . 1 3 Reinforcement 36 | . 1 2 4 . 1 2 . 1 . . . . . 4 . . . 2 . . . . . 1 . 5 . 7 . 1 . 4 1 Assault 23 | . . . . . . . . 2 . 1 . . . 1 . . . . . . . . . . . 4 . 2 . . . 12 1 Garrison 9 | . . . . . . 1 . 1 . . . . . . . . . 1 . . . 1 . . . 1 . . . 3 . 1 . Intercept . | . . . . . . . . . . . . . . . . . . . . . . . . . . . . . . . . . . Searches Triggered . | . . . . . . . . . . . . . . . . . . . . . . . . . . . . . . . . . . Construction Impeded 2 | . . . . . . . . . . . . . . 1 . . . . . . . . . . . . . 1 . . . . . Haulers Reinforced 5 | . . . . . . 1 . . . . . . . . . . . 1 . . . . . . . . . 1 . 1 . 1 . Active Scanning Responses . | . . . . . . . . . . . . . . . . . . . . . . . . . . . . . . . . . . Cargo Convoy Interrupts 1 | . . . . . . . . . . . . . . 1 . . . . . . . . . . . . . . . . . . . Stealth | -11 -10 -9 -8 -8 -8 -7 -7 -7 -7 -6 -6 -5 -5 -5 -5 -5 -5 -4 -4 -4 -4 -3 -3 -3 -3 -2 -2 -2 -2 -1 -1 -1 -1 --------- Run | Yrd Mat Mat Mat Gar Mat Fac Gar Fac Gar Fac Gar Fac Was Fac Gar Fac Gar Fac Gar Fac Gar Res Gar Res Gar Res Gar Tes Gar Acc Gar Acc Com Distress Signals 18 | . . 4 . . . 1 . . . . . . . 2 . . . 1 . . . . . 3 . 3 . 2 . . . . 2 Communications Jammed 1103 | . . . . . . . . . . . . . . 57 . . . 3 . . . . . . . 554 . 335 . 151 . 2 1 Distress Signals 1101 | . . . . . . . . . . . . . . 57 . . . 3 . . . . . . . 554 . 333 . 151 . 2 1 Times Spotted 927 | . 18 31 7 35 26 12 51 15 28 8 46 2 5 73 47 . 35 23 23 4 47 4 . 7 41 63 30 38 52 23 40 57 36 Peak Tracking Total 15 | . 5 6 3 5 5 3 10 5 4 5 6 2 3 5 6 . 5 3 6 4 11 3 . 4 7 7 10 13 15 4 6 13 5 Tactical Retreats 36 | . . 2 . . . 1 3 . 1 1 7 . . 9 3 . . 1 1 . 1 . . . 1 . 1 1 1 . . . 2 Traps | -11 -10 -9 -8 -8 -8 -7 -7 -7 -7 -6 -6 -5 -5 -5 -5 -5 -5 -4 -4 -4 -4 -3 -3 -3 -3 -2 -2 -2 -2 -1 -1 -1 -1 ------- Run | Yrd Mat Mat Mat Gar Mat Fac Gar Fac Gar Fac Gar Fac Was Fac Gar Fac Gar Fac Gar Fac Gar Res Gar Res Gar Res Gar Tes Gar Acc Gar Acc Com Traps Triggered 81 | . 2 1 . 3 1 . 7 1 3 . 5 1 . 6 6 . 5 . 8 . 8 . 3 1 4 . 5 1 6 1 3 . . Indirectly . | . . . . . . . . . . . . . . . . . . . . . . . . . . . . . . . . . . Trap Hack Attempts . | . . . . . . . . . . . . . . . . . . . . . . . . . . . . . . . . . . Triggered . | . . . . . . . . . . . . . . . . . . . . . . . . . . . . . . . . . . Disarmed . | . . . . . . . . . . . . . . . . . . . . . . . . . . . . . . . . . . Reprogrammed . | . . . . . . . . . . . . . . . . . . . . . . . . . . . . . . . . . . Reused . | . . . . . . . . . . . . . . . . . . . . . . . . . . . . . . . . . . Traps Extracted . | . . . . . . . . . . . . . . . . . . . . . . . . . . . . . . . . . . Installed . | . . . . . . . . . . . . . . . . . . . . . . . . . . . . . . . . . . Triggered . | . . . . . . . . . . . . . . . . . . . . . . . . . . . . . . . . . . Machines | -11 -10 -9 -8 -8 -8 -7 -7 -7 -7 -6 -6 -5 -5 -5 -5 -5 -5 -4 -4 -4 -4 -3 -3 -3 -3 -2 -2 -2 -2 -1 -1 -1 -1 ---------- Run | Yrd Mat Mat Mat Gar Mat Fac Gar Fac Gar Fac Gar Fac Was Fac Gar Fac Gar Fac Gar Fac Gar Res Gar Res Gar Res Gar Tes Gar Acc Gar Acc Com Machines Disabled 99 | . 2 . . 2 2 . 2 . 3 8 5 . . 15 10 . 3 9 2 . 3 . . . 5 3 3 1 8 2 2 8 1 Max in Single Turn 4 | . 1 . . 1 1 . 1 . 1 4 2 . . 4 2 . 1 1 1 . 1 . . . 1 . 1 . 1 1 1 2 1 Garrison Access 3 | . . . . . 1 . . . . 1 . . . . . . . . . . . . . . . 1 . . . . . . . Garrison Relay 23 | . . . . 2 . . . . 1 . 2 . . . 3 . 1 . 2 . 2 . . . 2 . 3 . 4 . 1 . . Phase Generator 4 | . . . . . . . 1 . 1 . 1 . . . . . 1 . . . . . . . . . . . . . . . . Energy Cycler 2 | . . . . . . . . . . . . . . . . . . . . . . . . . . . . . . 1 . 1 . Machines Repaired . | . . . . . . . . . . . . . . . . . . . . . . . . . . . . . . . . . . Machines Dismantled . | . . . . . . . . . . . . . . . . . . . . . . . . . . . . . . . . . . Machines Sabotaged . | . . . . . . . . . . . . . . . . . . . . . . . . . . . . . . . . . . Overloaded Fab Kills . | . . . . . . . . . . . . . . . . . . . . . . . . . . . . . . . . . . Hacking | -11 -10 -9 -8 -8 -8 -7 -7 -7 -7 -6 -6 -5 -5 -5 -5 -5 -5 -4 -4 -4 -4 -3 -3 -3 -3 -2 -2 -2 -2 -1 -1 -1 -1 --------- Run | Yrd Mat Mat Mat Gar Mat Fac Gar Fac Gar Fac Gar Fac Was Fac Gar Fac Gar Fac Gar Fac Gar Res Gar Res Gar Res Gar Tes Gar Acc Gar Acc Com Machines Accessed 98 | . 4 5 5 2 4 3 3 4 3 5 1 1 . 14 3 1 2 6 3 2 1 2 2 5 3 2 1 3 2 1 3 . 2 Terminals 61 | . 3 3 4 2 2 1 3 2 3 2 1 1 . 5 3 . 2 3 3 1 1 . 2 1 3 . 1 2 2 . 3 . 2 Fabricators 4 | . . . . . . 1 . . . . . . . 2 . . . 1 . . . . . . . . . . . . . . . Repair Stations 3 | . . . . . . . . . . 1 . . . 2 . . . . . . . . . . . . . . . . . . . Recycling Units 8 | . 1 1 . . 1 . . . . . . . . 4 . . . . . . . 1 . . . . . . . . . . . Scanalyzers 7 | . . 1 . . 1 . . 1 . . . . . . . . . 1 . . . . . 2 . 1 . . . . . . . Garrison Access 15 | . . . 1 . . 1 . 1 . 2 . . . 1 . 1 . 1 . 1 . 1 . 2 . 1 . 1 . 1 . . . Total Hacks 205 | . 13 13 13 4 10 4 8 9 4 8 4 4 . 34 4 1 4 14 5 5 1 2 2 9 5 2 2 7 4 1 6 . 3 Successful 82 | . 7 5 7 1 4 1 . 8 1 3 . 2 . 12 1 1 1 6 . 4 . 1 2 6 1 1 . 1 2 1 2 . 1 Failed 122 | . 6 8 6 3 6 3 8 1 3 5 4 2 . 22 3 . 3 8 5 1 1 1 . 2 4 1 2 6 2 . 4 . 2 Catastrophic 29 | . 2 1 1 . 1 . 3 1 1 2 . 1 . 3 1 . . 2 2 . 1 1 . 1 . 1 1 1 . . 1 . 1 Database Lockouts 1 | . . . . . . . . . . . . . . . . . . . . . . . . 1 . . . . . . . . . Manual 54 | . 6 3 9 . 4 1 . 3 . 4 . 4 . 9 . . 1 8 . 2 . . . . . . . . . . . . . Terminals 134 | . 8 9 12 4 4 1 8 3 4 3 4 4 . 16 4 . 4 7 5 4 1 . 2 1 5 . 2 6 4 . 6 . 3 Fabricators 11 | . . . . . . 2 . . . . . . . 5 . . . 4 . . . . . . . . . . . . . . . Repair Stations 9 | . . . . . . . . . . 3 . . . 6 . . . . . . . . . . . . . . . . . . . Recycling Units 17 | . 5 2 . . 3 . . . . . . . . 6 . . . . . . . 1 . . . . . . . . . . . Scanalyzers 19 | . . 2 . . 3 . . 5 . . . . . . . . . 2 . . . . . 6 . 1 . . . . . . . Garrison Access 15 | . . . 1 . . 1 . 1 . 2 . . . 1 . 1 . 1 . 1 . 1 . 2 . 1 . 1 . 1 . . . Terminal Hacks 30 | . 4 3 4 1 1 . . . 1 . . 1 . 2 1 . 1 1 . 2 . . 2 . 1 . . . 2 . 2 . 1 Robot Analysis 1 | . . . 1 . . . . . . . . . . . . . . . . . . . . . . . . . . . . . . Prototype ID Bank 6 | . 2 2 2 . . . . . . . . . . . . . . . . . . . . . . . . . . . . . . Open Door 5 | . . . . . . . . . . . . . . . . . . . . . . . 1 . 1 . . . 1 . 1 . 1 Branch Access Points 1 | . 1 . . . . . . . . . . . . . . . . . . . . . . . . . . . . . . . . Emergency Access Points 5 | . . . . 1 . . . . . . . . . . . . 1 . . . . . 1 . . . . . 1 . 1 . . Alert Level 1 | . . . 1 . . . . . . . . . . . . . . . . . . . . . . . . . . . . . . Unreport Threat 7 | . . 1 . . 1 . . . . . . 1 . 2 . . . 1 . 1 . . . . . . . . . . . . . Locate Traps 1 | . . . . . . . . . . . . . . . . . . . . 1 . . . . . . . . . . . . . Registered Components 1 | . 1 . . . . . . . . . . . . . . . . . . . . . . . . . . . . . . . . Garrison Registry 1 | . . . . . . . . . 1 . . . . . . . . . . . . . . . . . . . . . . . . Patrol Navigation 1 | . . . . . . . . . . . . . . . 1 . . . . . . . . . . . . . . . . . . Fabricator Hacks 3 | . . . . . . . . . . . . . . 2 . . . 1 . . . . . . . . . . . . . . . Network Status 3 | . . . . . . . . . . . . . . 2 . . . 1 . . . . . . . . . . . . . . . Repair Station Hacks 2 | . . . . . . . . . . . . . . 2 . . . . . . . . . . . . . . . . . . . Scan Component 1 | . . . . . . . . . . . . . . 1 . . . . . . . . . . . . . . . . . . . Repair 1 | . . . . . . . . . . . . . . 1 . . . . . . . . . . . . . . . . . . . Recycling Unit Hacks 8 | . 3 1 . . 1 . . . . . . . . 3 . . . . . . . . . . . . . . . . . . . Retrieve Components 8 | . 3 1 . . 1 . . . . . . . . 3 . . . . . . . . . . . . . . . . . . . Scanalyzer 12 | . . 1 . . 1 . . 5 . . . . . . . . . 1 . . . . . 4 . . . . . . . . . Retrieve Study 12 | . . 1 . . 1 . . 5 . . . . . . . . . 1 . . . . . 4 . . . . . . . . . Garrison Access Hacks 15 | . . . 1 . . 1 . 1 . 2 . . . 1 . 1 . 1 . 1 . 1 . 2 . 1 . 1 . 1 . . . Unlock Access 14 | . . . 1 . . 1 . 1 . 1 . . . 1 . 1 . 1 . 1 . 1 . 2 . 1 . 1 . 1 . . . Seal Access 1 | . . . . . . . . . . 1 . . . . . . . . . . . . . . . . . . . . . . . Unauthorized Hacks 12 | . . . 2 . 1 . . 2 . 1 . 1 . 2 . . . 2 . 1 . . . . . . . . . . . . . Terminals 9 | . . . 2 . 1 . . 2 . . . 1 . 1 . . . 1 . 1 . . . . . . . . . . . . . Botnet 9 | . . . 2 . 1 . . 2 . . . 1 . 1 . . . 1 . 1 . . . . . . . . . . . . . Fabricators 1 | . . . . . . . . . . . . . . . . . . 1 . . . . . . . . . . . . . . . Liberate 1 | . . . . . . . . . . . . . . . . . . 1 . . . . . . . . . . . . . . . Repair Stations 2 | . . . . . . . . . . 1 . . . 1 . . . . . . . . . . . . . . . . . . . Mechanics 2 | . . . . . . . . . . 1 . . . 1 . . . . . . . . . . . . . . . . . . . Recycling Units . | . . . . . . . . . . . . . . . . . . . . . . . . . . . . . . . . . . Scanalyzers . | . . . . . . . . . . . . . . . . . . . . . . . . . . . . . . . . . . Garrison Access . | . . . . . . . . . . . . . . . . . . . . . . . . . . . . . . . . . . Data Cores Recovered 3 | . 1 . . . . . . . . . . . . . . . . 1 . . . . . . . . . 1 . . . . . Used 2 | . 1 . . . . . . . . . . . . . . . . . . . . . . . . . . 1 . . . . . Hacking Detections 78 | . 4 5 4 1 3 3 3 2 3 2 1 1 . 11 2 1 2 5 3 1 1 2 . 3 2 2 1 3 2 . 3 . 2 Full Trace Events 3 | . 1 . . . 1 . . 1 . . . . . . . . . . . . . . . . . . . . . . . . . Feedback Events 1 | . . . . . . . . 1 . . . . . . . . . . . . . . . . . . . . . . . . . Corruption 1 | . . . . . . . . 1 . . . . . . . . . . . . . . . . . . . . . . . . . Feedback Blocked . | . . . . . . . . . . . . . . . . . . . . . . . . . . . . . . . . . . Robot Schematics Acquired 1 | . . . . . . . . . . . . . . . . . . . . . . . . . . . . 1 . . . . . Robots Built . | . . . . . . . . . . . . . . . . . . . . . . . . . . . . . . . . . . Authchips . | . . . . . . . . . . . . . . . . . . . . . . . . . . . . . . . . . . Time . | . . . . . . . . . . . . . . . . . . . . . . . . . . . . . . . . . . Total Robot Build Rating . | . . . . . . . . . . . . . . . . . . . . . . . . . . . . . . . . . . Part Schematics Acquired 3 | . . . . . . . . . . . . . . . . . . . . . . . . . . . . 3 . . . . . Parts Built . | . . . . . . . . . . . . . . . . . . . . . . . . . . . . . . . . . . Authchips . | . . . . . . . . . . . . . . . . . . . . . . . . . . . . . . . . . . Time . | . . . . . . . . . . . . . . . . . . . . . . . . . . . . . . . . . . Total Part Build Rating . | . . . . . . . . . . . . . . . . . . . . . . . . . . . . . . . . . . Part Studies Acquired 12 | . . 1 . . 1 . . 5 . . . . . . . . . 1 . . . . . 4 . . . . . . . . . Parts Repaired 1 | . . . . . . . . . . . . . . 1 . . . . . . . . . . . . . . . . . . . Time 56 | . . . . . . . . . . . . . . 56 . . . . . . . . . . . . . . . . . . . Parts Recycled . | . . . . . . . . . . . . . . . . . . . . . . . . . . . . . . . . . . Recycled Matter . | . . . . . . . . . . . . . . . . . . . . . . . . . . . . . . . . . . Retrieved Matter . | . . . . . . . . . . . . . . . . . . . . . . . . . . . . . . . . . . Retrieved Components 34 | . 10 10 . . 1 . . . . . . . . 13 . . . . . . . . . . . . . . . . . . . Parts Scanalyzed . | . . . . . . . . . . . . . . . . . . . . . . . . . . . . . . . . . . Part Schematics Acquired . | . . . . . . . . . . . . . . . . . . . . . . . . . . . . . . . . . . Parts Damaged . | . . . . . . . . . . . . . . . . . . . . . . . . . . . . . . . . . . Bothacking | -11 -10 -9 -8 -8 -8 -7 -7 -7 -7 -6 -6 -5 -5 -5 -5 -5 -5 -4 -4 -4 -4 -3 -3 -3 -3 -2 -2 -2 -2 -1 -1 -1 -1 ------------ Run | Yrd Mat Mat Mat Gar Mat Fac Gar Fac Gar Fac Gar Fac Was Fac Gar Fac Gar Fac Gar Fac Gar Res Gar Res Gar Res Gar Tes Gar Acc Gar Acc Com Used RIF Installer 14 | . . . . 1 . . 2 . 1 . 1 . . . 1 . 1 . 1 . 1 . 1 . 1 . 1 . 1 . 1 . . Coupler Efficiency 1 | . . . . . . . . . . . . . . . . . . . . . . . . . . . . . . . 1 . . Hotswap 1 | . . . . . . . . . . . . . . . . . . . . . . . . . . . 1 . . . . . . Command Fork 1 | . . . . . . . . . . . 1 . . . . . . . . . . . . . . . . . . . . . . Threat Obfuscator 2 | . . . . . . . . . . . . . . . . . 1 . . . . . . . 1 . . . . . . . . Signal Jammer 1 | . . . . . . . 1 . . . . . . . . . . . . . . . . . . . . . . . . . . Zone Cloak 1 | . . . . . . . . . . . . . . . 1 . . . . . . . . . . . . . . . . . . Watcher Feeds 1 | . . . . . . . . . 1 . . . . . . . . . . . . . . . . . . . . . . . . Structural Interface 1 | . . . . . . . 1 . . . . . . . . . . . . . . . . . . . . . . . . . . Program Shield 1 | . . . . . . . . . . . . . . . . . . . . . 1 . . . . . . . . . . . . Autooverride 3 | . . . . . . . 1 . . . . . . . . . . . 1 . . . . . . . . . 1 . . . . Autoassimilate 1 | . . . . . . . . . . . . . . . . . . . . . . . 1 . . . . . . . . . . Robots Hacked 289 | . . . . . . . 6 2 . 3 3 2 5 27 11 . 10 7 5 2 11 2 1 2 23 32 14 17 30 14 22 27 11 Non-combat 44 | . . . . . . . . . . 3 . . . 11 . . . 2 . 1 . . . 2 1 5 . 2 1 6 . 8 2 Combat 245 | . . . . . . . 6 2 . . 3 2 5 16 11 . 10 5 5 1 11 2 1 . 22 27 14 15 29 8 22 19 9 Autooverrided 73 | . . . . . . . . . . . 2 . . 1 2 . 3 1 2 . 6 1 . . 6 7 5 3 13 3 8 7 3 Autoassimilated 25 | . . . . . . . . . . . . . . . . . . . . . . . . . 3 4 1 2 3 2 6 3 1 Robot Hacks Applied 226 | . . . . . . . 6 2 . 3 1 2 5 28 9 . 7 12 3 2 6 1 1 2 20 23 10 15 17 10 11 19 11 parse_system 13 | . . . . . . . . . . . . . . 2 1 . . 1 . . . . 1 . . 3 1 1 1 . 1 1 . no_distress 2 | . . . . . . . . . . . . . . . . . . . . . . . . . . . . 1 . . . 1 . map_walls 1 | . . . . . . . . . . . . . . . . . . . . . . . . . . 1 . . . . . . . drop_inventory 14 | . . . . . . . . . . 1 . . . 3 . . . 1 . . . . . 1 . 2 . . . 3 . 3 . ignore_parts 3 | . . . . . . . . . . . . . . 2 . . . . . 1 . . . . . . . . . . . . . check_alert 1 | . . . . . . . . . . . . . . . . . . . . . . . . . 1 . . . . . . . . purge_threat 10 | . . . . . . . . . . . . . . 2 . . . 2 . . . . . . 3 . . . . . . . 3 find_terminals 1 | . . . . . . . . . . . . . . . . . . 1 . . . . . . . . . . . . . . . locate_traps 1 | . . . . . . . . . . . . . . . . . . 1 . . . . . . . . . . . . . . . block_reporting 3 | . . . . . . . . . . . . . . 2 . . . . . . . . . . . . . . . . . . 1 clear_recycling 1 | . . . . . . . . . . . . . . . . . . 1 . . . . . . . . . . . . . . . map_route 10 | . . . . . . . . . . 1 . . . 1 . . . . . . . . . . . 1 . . . 4 . 3 . disable_scanner 2 | . . . . . . . . . . . . . . . . . . . . . . . . . . . . 2 . . . . . locate_prototypes 1 | . . . . . . . . . . . . . . . . . . . . . . . . . . . . 1 . . . . . report_prototypes 1 | . . . . . . . . . . . . . . . . . . . . . . . . . . . . 1 . . . . . report_analyses 2 | . . . . . . . . . . . . . . . . . . . . . . . . . . . . 2 . . . . . ignore_targets 5 | . . . . . . . . . . . . . 5 . . . . . . . . . . . . . . . . . . . . find_garrison 4 | . . . . . . . . . . . . . . . . . . 1 . . . . . . . 2 . 1 . . . . . focus_fire 2 | . . . . . . . . . . . . . . . . . . . . . . . . . . 1 1 . . . . . . broadcast_data 1 | . . . . . . . . . . . . . . . . . . . . . . . . . . 1 . . . . . . . spike_heat 1 | . . . . . . . . . . . . . . . . . . . . . . . . . . . . . 1 . . . . amplify_resonance 13 | . . . . . . . . . . . . . . . 1 . 1 . . . . . . . 4 2 2 1 1 . 1 . . disable_weapons 1 | . . . . . . . . . . . . . . 1 . . . . . . . . . . . . . . . . . . . overwrite_iff 23 | . . . . . . . . . . . . . . 5 3 . 2 . . 1 . . . . 2 . 1 4 3 . . 2 . streamctrl_high 2 | . . . . . . . 1 . . . . . . . . . . . . . . . . . . . . . . . 1 . . formatsys_low 12 | . . . . . . . . . . 1 . . . 2 . . . . . . . . . 1 1 1 . 1 1 . . 2 2 formatsys_high 93 | . . . . . . . 5 2 . . 1 2 . 8 4 . 4 4 3 . 6 1 . . 9 8 5 . 10 2 8 7 4 formatsys_deep 3 | . . . . . . . . . . . . . . . . . . . . . . . . . . 1 . . . 1 . . 1 Relay Couplers Released 103 | . . . . 7 1 . 3 . 3 4 8 . . . 13 . 4 . 10 . 8 . . . 7 2 15 . 15 . 3 . . Machine Destruction 97 | . . . . 7 1 . . . 3 1 8 . . . 13 . 4 . 10 . 8 . . . 7 2 15 . 15 . 3 . . Programmers 6 | . . . . . . . 3 . . 3 . . . . . . . . . . . . . . . . . . . . . . . Attached 53 | . . . . . . . 3 . . 1 5 . . 6 4 . 1 2 2 . 4 . 1 . 6 3 3 . 3 1 5 . 3 Fabnet Peak Effective % . | . . . . . . . . . . . . . . . . . . . . . . . . . . . . . . . . . . Robots Rewired 43 | . . . . . . . . . 7 . 6 . . . 2 . 4 . 1 . 5 . 16 . . . . 1 . . 1 . . Allies Hacked 5 | . . . . . . . . . 1 . . . . 2 . . . . . . . . . . . . . . . . . . 2 Hacks Repelled . | . . . . . . . . . . . . . . . . . . . . . . . . . . . . . . . . . . Allies | -11 -10 -9 -8 -8 -8 -7 -7 -7 -7 -6 -6 -5 -5 -5 -5 -5 -5 -4 -4 -4 -4 -3 -3 -3 -3 -2 -2 -2 -2 -1 -1 -1 -1 -------- Run | Yrd Mat Mat Mat Gar Mat Fac Gar Fac Gar Fac Gar Fac Was Fac Gar Fac Gar Fac Gar Fac Gar Res Gar Res Gar Res Gar Tes Gar Acc Gar Acc Com Total Allies 309 | . . . . 4 . . 8 2 8 1 11 2 . 16 11 . 13 5 8 1 18 2 16 1 24 25 13 13 32 9 29 21 16 Largest Group 22 | . . . . 4 2 2 4 3 4 4 7 7 4 5 6 2 6 3 7 5 9 9 22 10 10 14 12 13 12 12 22 22 9 Highest-Rated Group 1567 | . . . . 84 42 38 96 96 96 95 260 256 136 158 394 148 287 287 470 313 573 426 1152 493 514 851 886 985 708 696 1532 1567 427 Highest-Rated Ally 221 | . . . . 21 21 21 32 32 57 31 80 80 51 80 119 119 119 119 119 95 148 64 148 99 64 148 148 149 148 95 219 219 221 Total Orders 31 | . . . . . . . . . . 1 . . . 1 . . . . 4 . . . . . 4 1 . 3 8 2 1 3 3 STAY 8 | . . . . . . . . . . . . . . . . . . . 2 . . . . . 2 . . 1 1 . . . 2 FOLLOW 5 | . . . . . . . . . . . . . . . . . . . 2 . . . . . 1 . . 1 1 . . . . GUARD 2 | . . . . . . . . . . . . . . . . . . . . . . . . . . . . . . . . 2 . AID 16 | . . . . . . . . . . 1 . . . 1 . . . . . . . . . . 1 1 . 1 6 2 1 1 1 Ally Attacks 2201 | . . . . 20 60 10 28 14 41 9 59 4 54 72 73 . 36 59 56 18 170 25 . 68 62 278 93 176 119 102 188 233 74 Total Damage 72503 | . . . . 345 853 90 618 448 1273 211 2029 172 1351 1612 1850 . 936 2505 2086 818 5464 658 . 1398 1624 8291 2739 5702 4881 2494 6245 11294 4516 Kills 370 | . . . . 2 15 1 2 5 6 3 14 . 1 8 17 . 5 19 9 4 29 5 . 10 8 45 20 30 13 14 27 51 7 Allies Corrupted 22 | . . . . . . . . . 1 . 1 . . . . . . 1 . . 5 . . 1 2 2 . . . 1 1 2 5 Allies Melted 2 | . . . . . . . . . . . . . . 1 1 . . . . . . . . . . . . . . . . . . X0-1V1 Amusement Gains 173 | . 20 5 . . 94 . 20 14 . . . . . . . . 10 . 5 . . . . . . . . . . . . . 5 Good Acts 178 | . . 3 2 4 10 7 18 4 10 6 16 1 1 3 8 . 4 3 5 . 9 . 8 3 11 4 3 . 8 2 2 5 18 Bad Acts 125 | . 1 7 3 4 1 . 16 1 5 . 8 . 1 19 11 . 3 5 2 1 . . 1 . 4 4 3 2 6 2 3 7 5 Intel | -11 -10 -9 -8 -8 -8 -7 -7 -7 -7 -6 -6 -5 -5 -5 -5 -5 -5 -4 -4 -4 -4 -3 -3 -3 -3 -2 -2 -2 -2 -1 -1 -1 -1 ------- Run | Yrd Mat Mat Mat Gar Mat Fac Gar Fac Gar Fac Gar Fac Was Fac Gar Fac Gar Fac Gar Fac Gar Res Gar Res Gar Res Gar Tes Gar Acc Gar Acc Com Active Infowar (turns) 504 | . 501 . . . . . . . . . . . . . . . . . . . . . . . . . . . . 3 . . . Seismic 1 | . . . . . . . . . . . . . . . . . . . . . . . . . . . . . . 1 . . . T.N.C. 501 | . 501 . . . . . . . . . . . . . . . . . . . . . . . . . . . . . . . . ECM 2 | . . . . . . . . . . . . . . . . . . . . . . . . . . . . . . 2 . . . Robot Analysis Total 1 | . . . 1 . . . . . . . . . . . . . . . . . . . . . . . . . . . . . . Derelict Logs Recovered . | . . . . . . . . . . . . . . . . . . . . . . . . . . . . . . . . . . Drone Launches . | . . . . . . . . . . . . . . . . . . . . . . . . . . . . . . . . . . Drone Recoveries . | . . . . . . . . . . . . . . . . . . . . . . . . . . . . . . . . . . Exploration | -11 -10 -9 -8 -8 -8 -7 -7 -7 -7 -6 -6 -5 -5 -5 -5 -5 -5 -4 -4 -4 -4 -3 -3 -3 -3 -2 -2 -2 -2 -1 -1 -1 -1 ------------- Run | Yrd Mat Mat Mat Gar Mat Fac Gar Fac Gar Fac Gar Fac Was Fac Gar Fac Gar Fac Gar Fac Gar Res Gar Res Gar Res Gar Tes Gar Acc Gar Acc Com Turns Passed 32888 | 61 1411 813 568 1620 810 987 1987 741 1331 498 1394 46 140 3227 1561 26 1555 1019 1297 147 1426 65 916 520 1437 1009 646 322 1256 619 956 1193 1284 Spaces Moved 17695 | 43 768 376 285 789 328 415 988 478 758 296 683 26 77 1481 695 14 770 618 794 92 740 47 652 306 879 564 398 150 730 405 540 636 874 Core 273 | 13 . . . . . . . . . . . . . . . . . . . . . . . . . . . . . . . . 260 Treads 1939 | . 454 376 285 600 . . . . . . . . . 224 . . . . . . . . . . . . . . . . . . . Legs 344 | 30 314 . . . . . . . . . . . . . . . . . . . . . . . . . . . . . . . . Wheels 15139 | . . . . 189 328 415 988 478 758 296 683 26 77 1257 695 14 770 618 794 92 740 47 652 306 879 564 398 150 730 405 540 636 614 Hover . | . . . . . . . . . . . . . . . . . . . . . . . . . . . . . . . . . . Flight . | . . . . . . . . . . . . . . . . . . . . . . . . . . . . . . . . . . Fastest Speed 50 | 50 120 160 160 135 200 200 120 110 110 135 135 165 165 120 150 180 150 120 120 135 120 126 126 126 126 126 126 126 126 127 127 125 50 Average Speed 143 | 98 143 160 160 164 205 214 145 126 126 135 146 165 165 172 175 180 169 133 134 135 134 126 126 134 126 126 126 126 126 127 127 125 111 Slowest Speed 250 | 120 190 160 160 240 225 215 215 145 250 135 165 165 165 240 195 180 180 135 135 135 180 126 126 141 141 126 126 126 127 127 127 127 230 Overloaded Moves . | . . . . . . . . . . . . . . . . . . . . . . . . . . . . . . . . . . Propulsion Burnouts . | . . . . . . . . . . . . . . . . . . . . . . . . . . . . . . . . . . Robots Hopped 2 | . . . . . . . . . . . . . . . . . . . . . . . . . . 2 . . . . . . . Potential Cave-ins . | . . . . . . . . . . . . . . . . . . . . . . . . . . . . . . . . . . Cave-ins Triggered . | . . . . . . . . . . . . . . . . . . . . . . . . . . . . . . . . . . Time Travels 1 | . . . . . . . . . . . . . . . . . . . . . . . . 1 . . . . . . . . . Exploration Rate (%) 48 | 3 94 43 37 78 46 16 90 13 74 14 94 4 68 38 90 1 84 20 84 5 93 3 97 12 90 24 62 27 94 14 78 25 23 Regions Visited 33 Branch Regions 2 Pre-discovered Areas . | . . . . . . . . . . . . . . . . . . . . . . . . . . . . . . . . . . Known Exits Taken 15 | . . . 1 . 1 1 . 1 . 1 . . . 1 . 1 . 1 . 1 . 1 . 1 . 1 . 1 . 1 . 1 . Unknown Exits Taken 3 | 1 1 1 . . . . . . . . . . . . . . . . . . . . . . . . . . . . . . . Scrap Searched . | . . . . . . . . . . . . . . . . . . . . . . . . . . . . . . . . . . Spaces Dug 25 | . . . . . . . . . 3 . . . . 6 1 . . . . . 1 . . 2 . 5 . 3 . . . 2 2 Terrain Destroyed 623 | . 12 23 13 . 5 . 41 . 18 46 34 . . 149 5 . 47 32 21 2 48 . . 2 20 14 2 9 12 5 8 35 20 Melee . | . . . . . . . . . . . . . . . . . . . . . . . . . . . . . . . . . . Projectile 239 | . . . . . 5 . 1 . 18 4 27 . . 44 5 . 15 10 8 2 6 . . 2 9 14 2 9 12 5 8 13 20 AOE 384 | . 12 23 13 . . . 40 . . 42 7 . . 105 . . 32 22 13 . 42 . . . 11 . . . . . . 22 . Terrain Rammed . | . . . . . . . . . . . . . . . . . . . . . . . . . . . . . . . . . . Walls Destroyed . | . . . . . . . . . . . . . . . . . . . . . . . . . . . . . . . . . . Machines Disabled . | . . . . . . . . . . . . . . . . . . . . . . . . . . . . . . . . . . Actions | -11 -10 -9 -8 -8 -8 -7 -7 -7 -7 -6 -6 -5 -5 -5 -5 -5 -5 -4 -4 -4 -4 -3 -3 -3 -3 -2 -2 -2 -2 -1 -1 -1 -1 --------- Run | Yrd Mat Mat Mat Gar Mat Fac Gar Fac Gar Fac Gar Fac Was Fac Gar Fac Gar Fac Gar Fac Gar Res Gar Res Gar Res Gar Tes Gar Acc Gar Acc Com Total 23148 | 59 973 515 357 963 415 480 1346 589 994 375 947 29 87 1989 922 14 959 760 980 108 1086 52 742 411 1157 786 519 247 963 492 753 955 1124 Wait 2145 | . 117 77 33 32 15 19 113 54 60 52 38 . 2 212 45 . 42 23 65 6 132 2 11 77 112 114 49 47 91 53 118 219 115 Move 17670 | 42 767 375 284 788 327 415 987 478 757 296 682 26 76 1481 694 14 769 618 793 92 739 47 651 305 878 561 397 150 729 405 538 635 874 Hop 1 | . . . . . . . . . . . . . . . . . . . . . . . . . . 1 . . . . . . . Pick Up 251 | 9 12 4 3 23 10 5 8 7 10 2 7 . . 27 11 . 11 12 5 . 7 . 24 3 6 10 7 . 10 . 15 2 1 Fast Attach 144 | 3 2 3 4 1 4 . 10 3 5 4 7 . 2 22 9 . 6 8 6 1 10 . 2 6 7 2 . . . 3 4 5 5 Attach 154 | 3 4 2 2 7 . 2 7 1 5 1 8 . . 20 9 . 5 17 6 1 16 2 . 1 3 3 2 1 7 2 . 3 14 Detach 54 | . . 1 . 2 . . 3 1 . . 5 . . 7 2 . 2 12 4 1 9 . 1 . 1 . 1 1 1 . . . . Swap 159 | . 9 7 7 13 3 2 17 6 5 1 5 . . 13 9 . 15 5 4 . 2 . 2 2 12 3 4 2 4 . 7 . . Drop 249 | . 8 9 6 8 14 6 10 10 17 4 6 . 1 26 9 . 16 12 8 1 17 . 13 8 6 9 4 . 2 2 8 1 8 Fire 1806 | . 50 35 18 82 42 31 174 28 105 15 100 3 6 149 91 . 62 53 33 6 83 1 35 8 70 83 31 45 95 27 55 89 101 Melee 8 | . . . . . . . . . 2 . . . . . . . . . . . . . . . 6 . . . . . . . . Ram 5 | . . . . . . . . . . . . . . . . . . . . . . . . 1 2 . . . . . . . 2 Kick 4 | 2 2 . . . . . . . . . . . . . . . . . . . . . . . . . . . . . . . . Crush 4 | . 2 2 . . . . . . . . . . . . . . . . . . . . . . . . . . . . . . . Escape Stasis 348 | . . . . 7 . . 16 . 16 . 28 . . 32 42 . 24 . 40 . 56 . . . 32 . 23 . 24 . 8 . . Rewire 146 | . . . . . . . 1 1 12 . 61 . . . 1 . 7 . 16 . 15 . 3 . 22 . 1 1 . . . 1 4 Trap . | . . . . . . . . . . . . . . . . . . . . . . . . . . . . . . . . . . Miscellaneous . | . . . . . . . . . . . . . . . . . . . . . . . . . . . . . . . . . . Route ------- -11/Scrapyard -10/Materials (discovered 5 exits: *Mat x3 / *Min / [*Sub]) -9/Materials -8/Materials (discovered 2 exits: [*Sto] / Gar) -8/Garrison (discovered 4 exits: *Mat x4) -8/Materials (discovered 3 exits: *Fac x3) -7/Factory -7/Garrison (discovered 3 exits: *Fac x3) -7/Factory (discovered 3 exits: *Fac / [*Low] / Gar) -7/Garrison (discovered 3 exits: *Fac x3) -6/Factory (discovered 3 exits: Fac / [*Low] / Gar) -6/Garrison (discovered 3 exits: *Fac x3) -5/Factory -5/Waste -5/Factory (discovered 2 exits: *Fac / Gar) -5/Garrison (discovered 3 exits: *Fac x3) -5/Factory -5/Garrison (discovered 3 exits: *Fac x3) -4/Factory (discovered 2 exits: *Res / Gar) -4/Garrison (discovered 3 exits: *Fac x3) -4/Factory -4/Garrison (discovered 3 exits: *Res x3) -3/Research -3/Garrison (discovered 4 exits: *Res x3 / *Res) -3/Research (discovered 3 exits: *Res / Gar / Gar) -3/Garrison (discovered 3 exits: *Res x3) -2/Research (discovered 2 exits: *Tes / Gar) -2/Garrison (discovered 2 exits: *Tes x2) -2/Testing -2/Garrison (discovered 3 exits: *Acc x3) -1/Access -1/Garrison (discovered 2 exits: [*Acc x2]) -1/Access -1/Command (discovered 2 exits: Sur / Ac0) 0b10 Command History --------- Turn | Location | Event 8 | -11/Scrapyard | Discovered new exit (range 15) 62 | -11/Scrapyard | Entered Materials 304 | -10/Materials | Build established: Mutant 349 | -10/Materials | Discovered new exit (range 11) 476 | -10/Materials | Discovered new exit (range 8) 595 | -10/Materials | Lost 3 parts (1p1n1w) 701 | -10/Materials | Discovered new exit (range 11) 811 | -10/Materials | Identified exit to Mines 901 | -10/Materials | Discovered new exit (range 3) 1162 | -10/Materials | Discovered new exit (range 10) 1176 | -10/Materials | Prayed at D.C.S.S. Altar Unit 1312 | -10/Materials | X0-1V1 made a cryptic comment about sterilization and BL-4Z3 1469 | -10/Materials | Sterilization system engaged 1469 | -10/Materials | Non-combat units ordered to evacuate 1473 | -10/Materials | Entered another Materials area 1473 | -9/Materials | Evolved 2 slots: Utility x1, Weapon x1 1715 | -9/Materials | Inventory capacity permanently improved by X0-1V1 (+1; -100 max core) 1834 | -9/Materials | Build established: Tank 2168 | -9/Materials | Discovered new exit (range 4) 2286 | -9/Materials | Entered another Materials area 2286 | -8/Materials | Evolved 2 slots: Propulsion x1, Utility x1 2421 | -8/Materials | Build established: Scavenger-Tank 2571 | -8/Materials | Ranged accuracy permanently improved by X0-1V1 (+5%; -50 max core) 2629 | -8/Materials | X0-1V1 activates XOMVISION 2759 | -8/Materials | Met 7R-MNS 2769 | -8/Materials | Discovered new exit (range 11) 2798 | -8/Materials | Identified exit to Garrison 2854 | -8/Materials | Entered Garrison 2930 | -8/Garrison | Triggered checkpoint 2975 | -8/Garrison | Garrison Relay disabled 2998 | -8/Garrison | X0-1V1 sent hostile Y-45 Defender (x1) 3200 | -8/Garrison | Triggered checkpoint 3314 | -8/Garrison | X0-1V1 sent hostile G-47 Trooper (x5) 3396 | -8/Garrison | Triggered checkpoint 3444 | -8/Garrison | Garrison Relay disabled 3519 | -8/Garrison | Discovered new exit (range 13) 3534 | -8/Garrison | Triggered checkpoint 3568 | -8/Garrison | Discovered new exit (range 6) 3630 | -8/Garrison | X0-1V1 activates XOMVISION 3700 | -8/Garrison | Triggered checkpoint 3743 | -8/Garrison | Discovered new exit (range 12) 3756 | -8/Garrison | Installed Relay Interface Framework 3836 | -8/Garrison | Triggered checkpoint 3926 | -8/Garrison | Discovered new exit (range 10) 4050 | -8/Garrison | Triggered checkpoint 4087 | -8/Garrison | X0-1V1 sent allied H-55 Commando (x4) 4262 | -8/Garrison | Build established: Tank 4474 | -8/Garrison | Entered Materials 4474 | -8/Materials | Accompanied by 2 allies 4588 | -8/Materials | Build established: Hauler-Tank 4630 | -8/Materials | Identified exit to Factory 4630 | -8/Materials | X0-1V1 revealed exit location to -7/Factory 4648 | -8/Materials | X0-1V1 released a cloud of subatomizers 4755 | -8/Materials | X0-1V1 revealed exit location to -7/Factory 4938 | -8/Materials | X0-1V1 revealed exit location to -7/Factory 5009 | -8/Materials | Sterilization system engaged 5009 | -8/Materials | Non-combat units ordered to evacuate 5109 | -8/Materials | Combat units ordered to evacuate 5284 | -8/Materials | Entered Factory 5284 | -7/Factory | Accompanied by 2 allies 5284 | -7/Factory | Evolved 2 slots: Utility x2 5551 | -7/Factory | Energy capacity permanently improved by X0-1V1 (+200; -100 max core) 5946 | -7/Factory | X0-1V1 activates XOMVISION 6051 | -7/Factory | Garrison activated, responded to threat 6056 | -7/Factory | X0-1V1 foreshadows a heat wave 6082 | -7/Factory | X0-1V1 whisked you away to safety 6271 | -7/Factory | Identified exit to Garrison 6271 | -7/Factory | Entered Garrison 6356 | -7/Garrison | Triggered checkpoint 6554 | -7/Garrison | Expanded RIF knowledge: Autooverride 6572 | -7/Garrison | X0-1V1 destroyed Phase Generator 6572 | -7/Garrison | Phase Generator disabled 6902 | -7/Garrison | Destroyed 8 combat bots 6909 | -7/Garrison | Lost 3 parts (1n1u1w) 6919 | -7/Garrison | Build established: Bothacker-Tank 6945 | -7/Garrison | Triggered checkpoint 7014 | -7/Garrison | Triggered checkpoint 7026 | -7/Garrison | X0-1V1 activates XOMVISION 7062 | -7/Garrison | Discovered new exit (range 14) 7129 | -7/Garrison | Expanded RIF knowledge: Signal Jamming 7320 | -7/Garrison | X0-1V1 vaporized surrounding terrain (radius 21) 7320 | -7/Garrison | Triggered checkpoint 7322 | -7/Garrison | Rescued a captive Derelict 7322 | -7/Garrison | Rescued a captive Derelict 7378 | -7/Garrison | Lost 4 allies 7395 | -7/Garrison | X0-1V1 sent you into danger 7417 | -7/Garrison | Discovered new exit (range 14) 7432 | -7/Garrison | Identified exit to Factory 7432 | -7/Garrison | X0-1V1 revealed exit location to -7/Factory 7453 | -7/Garrison | System corruption reached 10% 7625 | -7/Garrison | System corruption reached 30% 7688 | -7/Garrison | Expanded RIF knowledge: Structural Interface 7775 | -7/Garrison | Triggered checkpoint 7859 | -7/Garrison | Triggered checkpoint 7925 | -7/Garrison | Triggered checkpoint 8107 | -7/Garrison | Triggered checkpoint 8258 | -7/Garrison | Entered Factory 8258 | -7/Factory | Accompanied by 2 allies 8331 | -7/Factory | Discovered new exit (range 10) 8351 | -7/Factory | X0-1V1 sent someone to fix up the mess you leave 8658 | -7/Factory | First assault squad dispatched 8892 | -7/Factory | Discovered new exit (range 9) 8966 | -7/Factory | Garrison activated, responded to threat 8998 | -7/Factory | Identified exit to Garrison 8999 | -7/Factory | Entered Garrison 8999 | -7/Garrison | Accompanied by 1 ally 9039 | -7/Garrison | Triggered checkpoint 9185 | -7/Garrison | Spotted B-75 Beast 9287 | -7/Garrison | Triggered checkpoint 9390 | -7/Garrison | Weapon slot count temporarily expanded by X0-1V1 (+3) 9440 | -7/Garrison | Core integrity fell below 50% 9471 | -7/Garrison | Discovered new exit (range 12) 9475 | -7/Garrison | Triggered checkpoint 9571 | -7/Garrison | Triggered checkpoint 9589 | -7/Garrison | X0-1V1 sent allied Chaos Knight (x1) 9680 | -7/Garrison | Identified exit to Factory 9680 | -7/Garrison | X0-1V1 revealed exit location to -6/Factory 9755 | -7/Garrison | Triggered checkpoint 9840 | -7/Garrison | Med. Reflective Plating reconfigured into Item Mimic 9951 | -7/Garrison | Build established: Botlord-Tank 10011 | -7/Garrison | Triggered checkpoint 10037 | -7/Garrison | Triggered checkpoint 10058 | -7/Garrison | Discovered exit to Factory (range 23) 10058 | -7/Garrison | Discovered exit to Factory (range 30) 10058 | -7/Garrison | Discovered exit to Factory (range 56) 10091 | -7/Garrison | Expanded RIF knowledge: Watcher Feeds 10099 | -7/Garrison | X0-1V1 activates XOMVISION 10263 | -7/Garrison | Core integrity fell below 20% 10293 | -7/Garrison | X0-1V1 destroyed Phase Generator 10293 | -7/Garrison | Phase Generator disabled 10330 | -7/Garrison | Entered Factory 10330 | -6/Factory | Accompanied by 4 allies 10330 | -6/Factory | Evolved 2 slots: Utility x2 10634 | -6/Factory | Discovered new exit (range 4) 10678 | -6/Factory | Identified exit to Factory 10678 | -6/Factory | X0-1V1 revealed exit location to -5/Factory 10680 | -6/Factory | First assault squad dispatched 10826 | -6/Factory | Identified exit to Garrison 10828 | -6/Factory | Entered Garrison 10828 | -6/Garrison | Accompanied by 4 allies 10831 | -6/Garrison | X0-1V1 revealed exit location to -5/Factory 10851 | -6/Garrison | Garrison Relay disabled 10889 | -6/Garrison | Triggered checkpoint 10957 | -6/Garrison | X0-1V1 destroyed Phase Generator 10957 | -6/Garrison | Phase Generator disabled 11002 | -6/Garrison | Triggered checkpoint 11064 | -6/Garrison | X0-1V1 upgraded hostiles (x1) 11130 | -6/Garrison | Discovered exit to Factory (range 7) 11140 | -6/Garrison | Triggered checkpoint 11156 | -6/Garrison | Found embedded Infiltrators 11158 | -6/Garrison | Triggered checkpoint 11219 | -6/Garrison | Lost 4 parts (1p1n1u1w) 11355 | -6/Garrison | Triggered checkpoint 11376 | -6/Garrison | Triggered checkpoint 11467 | -6/Garrison | Build established: Hauler-Mutant 11468 | -6/Garrison | Triggered checkpoint 11616 | -6/Garrison | Triggered checkpoint 11778 | -6/Garrison | Expanded RIF knowledge: Command Fork 11809 | -6/Garrison | X0-1V1 activates XOMVISION 11833 | -6/Garrison | X0-1V1 revealed exit location to -5/Factory 11884 | -6/Garrison | X0-1V1 mutated your Utility slot to Weapon slot 11934 | -6/Garrison | Triggered checkpoint 11983 | -6/Garrison | X0-1V1 sent you into danger 12020 | -6/Garrison | Found Relay Coupler [Proto] 12022 | -6/Garrison | Found Relay Coupler [Proto] 12058 | -6/Garrison | X0-1V1 rewrote 51-QMI(b) IFF filter 12222 | -6/Garrison | Entered Factory 12222 | -5/Factory | Accompanied by 5 allies 12222 | -5/Factory | Evolved 2 slots: Utility x2 12268 | -5/Factory | Sucked down chute 12268 | -5/Factory | Entered Waste 12280 | -5/Waste | Spotted C-40 Crusher 12283 | -5/Waste | EMP discharged 12283 | -5/Waste | Spotted C-40 Crusher 12311 | -5/Waste | Spotted C-40 Crusher 12323 | -5/Waste | Spotted C-40 Crusher 12323 | -5/Waste | Spotted C-40 Crusher 12334 | -5/Waste | Spotted C-40 Crusher 12383 | -5/Waste | EMP discharged 12383 | -5/Waste | System corruption reached 10% 12389 | -5/Waste | Discovered new exit (range 11) 12403 | -5/Waste | 6 allies followed down the chute 12407 | -5/Waste | Build established: Botlord-Tank 12408 | -5/Waste | Entered Factory 12423 | -5/Factory | 1 allies followed down the chute 12639 | -5/Factory | Spotted B-75 Beast 12639 | -5/Factory | X0-1V1 sent you into danger 12925 | -5/Factory | X0-1V1 sent you into danger 12999 | -5/Factory | Lost 9 parts (1p2n3u3w) 13203 | -5/Factory | X0-1V1 sent hostile Thug (x4) 13438 | -5/Factory | Cargo convoy interrupted 13741 | -5/Factory | Discovered new exit (range 22) 13841 | -5/Factory | X0-1V1 announced a LAN party 13948 | -5/Factory | X0-1V1 mutated your Propulsion slot to Utility slot 14392 | -5/Factory | Repaired Hvy. Mass Driver 14444 | -5/Factory | X0-1V1 enhanced Transport squad support 14635 | -5/Factory | Core integrity fell below 50% 14732 | -5/Factory | X0-1V1 mutated your Weapon slot to Power slot 14883 | -5/Factory | X0-1V1 tapped a No Entrance sign 15108 | -5/Factory | First assault squad dispatched 15314 | -5/Factory | X0-1V1 sent you into danger 15538 | -5/Factory | P-70 Sage assimilated allied Soldier 6f 15635 | -5/Factory | Identified exit to Garrison 15635 | -5/Factory | Entered Garrison 15649 | -5/Garrison | Lost 3 allies 15725 | -5/Garrison | Triggered checkpoint 15732 | -5/Garrison | Triggered checkpoint 15795 | -5/Garrison | X0-1V1 downgraded hostiles (x1) 15804 | -5/Garrison | X0-1V1 upgraded hostiles (x2) 15813 | -5/Garrison | Triggered checkpoint 15865 | -5/Garrison | Weapon slot count temporarily expanded by X0-1V1 (+3) 15919 | -5/Garrison | Triggered checkpoint 15973 | -5/Garrison | Garrison Relay disabled 16030 | -5/Garrison | Discovered new exit (range 10) 16213 | -5/Garrison | Garrison Relay disabled 16271 | -5/Garrison | Discovered new exit (range 10) 16320 | -5/Garrison | Spotted Executioner 16320 | -5/Garrison | Spotted Executioner 16338 | -5/Garrison | Destroyed Executioner 16342 | -5/Garrison | Allies destroyed Executioner 16359 | -5/Garrison | Rewired Executioner 16364 | -5/Garrison | Rewired Executioner 16391 | -5/Garrison | Triggered checkpoint 16476 | -5/Garrison | Spotted B-75 Beast 16482 | -5/Garrison | Allies destroyed B-75 Beast 16587 | -5/Garrison | X0-1V1 vaporized surrounding terrain (radius 20) 16588 | -5/Garrison | Triggered checkpoint 16653 | -5/Garrison | Expanded RIF knowledge: Zone Cloak 16665 | -5/Garrison | Discovered new exit (range 12) 16811 | -5/Garrison | X0-1V1 mutated your Weapon slot to Utility slot 16843 | -5/Garrison | Triggered checkpoint 16847 | -5/Garrison | Garrison Relay disabled 16870 | -5/Garrison | Found Adv. Kinecellerator 17093 | -5/Garrison | X0-1V1 sent hostile P-60 Hacker (x2) 17107 | -5/Garrison | Build established: Botlord-Mutant 17196 | -5/Garrison | Entered Factory 17196 | -5/Factory | Accompanied by 2 allies 17222 | -5/Factory | Identified exit to Garrison 17222 | -5/Factory | Entered Garrison 17222 | -5/Garrison | Accompanied by 2 allies 17254 | -5/Garrison | Triggered checkpoint 17284 | -5/Garrison | Garrison Relay disabled 17368 | -5/Garrison | Allies destroyed Executioner 17422 | -5/Garrison | Triggered checkpoint 17449 | -5/Garrison | Spotted B-75 Beast 17452 | -5/Garrison | Destroyed B-75 Beast 17481 | -5/Garrison | Lost 8 allies 17552 | -5/Garrison | Triggered checkpoint 17641 | -5/Garrison | X0-1V1 destroyed Phase Generator 17641 | -5/Garrison | Phase Generator disabled 17718 | -5/Garrison | Expanded RIF knowledge: Threat Obfuscation 17939 | -5/Garrison | Discovered new exit (range 7) 18152 | -5/Garrison | Triggered checkpoint 18288 | -5/Garrison | Core integrity restored by X0-1V1 (+120) 18316 | -5/Garrison | Discovered new exit (range 8) 18546 | -5/Garrison | Triggered checkpoint 18611 | -5/Garrison | Identified exit to Factory 18611 | -5/Garrison | X0-1V1 revealed exit location to -4/Factory 18723 | -5/Garrison | Rewired Executioner 18726 | -5/Garrison | Rewired Executioner 18751 | -5/Garrison | Core integrity restored by X0-1V1 (+135) 18777 | -5/Garrison | Entered Factory 18777 | -4/Factory | Accompanied by 3 allies 18777 | -4/Factory | Evolved 2 slots: Propulsion x2 19077 | -4/Factory | Discovered new exit (range 37) 19572 | -4/Factory | X0-1V1 activates XOMVISION 19701 | -4/Factory | X0-1V1 sent you into danger 19711 | -4/Factory | Garrison activated, responded to threat 19796 | -4/Factory | Identified exit to Garrison 19796 | -4/Factory | Entered Garrison 19796 | -4/Garrison | Accompanied by 3 allies 19968 | -4/Garrison | Triggered checkpoint 20025 | -4/Garrison | System corruption reached 10% 20050 | -4/Garrison | Triggered checkpoint 20050 | -4/Garrison | Garrison Relay disabled 20086 | -4/Garrison | Expanded RIF knowledge: Autooverride 20186 | -4/Garrison | Discovered new exit (range 13) 20427 | -4/Garrison | Spotted Executioner 20440 | -4/Garrison | Destroyed Executioner 20474 | -4/Garrison | Rewired Executioner 20527 | -4/Garrison | Discovered new exit (range 5) 20534 | -4/Garrison | Found embedded Infiltrators 20578 | -4/Garrison | Triggered checkpoint 20614 | -4/Garrison | Garrison Relay disabled 20749 | -4/Garrison | Triggered checkpoint 20780 | -4/Garrison | Triggered checkpoint 20950 | -4/Garrison | Triggered checkpoint 21001 | -4/Garrison | Discovered new exit (range 5) 21093 | -4/Garrison | Entered Factory 21093 | -4/Factory | Accompanied by 5 allies 21149 | -4/Factory | X0-1V1 announced a LAN party 21239 | -4/Factory | Identified exit to Garrison 21240 | -4/Factory | Entered Garrison 21240 | -4/Garrison | Accompanied by 4 allies 21261 | -4/Garrison | Spotted B-75 Beast 21274 | -4/Garrison | Destroyed B-75 Beast 21331 | -4/Garrison | Rewired B-90 Cyclops 21435 | -4/Garrison | X0-1V1 activates XOMVISION 21454 | -4/Garrison | Triggered checkpoint 21490 | -4/Garrison | Triggered checkpoint 21660 | -4/Garrison | Spotted B-86 Titan 21676 | -4/Garrison | Triggered checkpoint 21688 | -4/Garrison | Allies destroyed B-86 Titan 21705 | -4/Garrison | Identified exit to Research 21705 | -4/Garrison | X0-1V1 revealed exit location to -3/Research 21773 | -4/Garrison | Garrison Relay disabled 21845 | -4/Garrison | Rescued a captive Derelict 21846 | -4/Garrison | Rescued a captive Derelict 21972 | -4/Garrison | Lost 6 allies 22128 | -4/Garrison | Triggered checkpoint 22223 | -4/Garrison | Lost 3 allies 22269 | -4/Garrison | Garrison Relay disabled 22306 | -4/Garrison | Triggered checkpoint 22346 | -4/Garrison | Discovered exit to Research (range 11) 22359 | -4/Garrison | Expanded RIF knowledge: Program Shield 22494 | -4/Garrison | Triggered checkpoint 22562 | -4/Garrison | Found Exp. EM Disruption Field 22622 | -4/Garrison | Discovered exit to Research (range 9) 22666 | -4/Garrison | Entered Research 22666 | -3/Research | Accompanied by 7 allies 22666 | -3/Research | Evolved 2 slots: Utility x1, Weapon x1 22729 | -3/Research | Identified exit to Garrison 22731 | -3/Research | Entered Garrison 22731 | -3/Garrison | Discovered recently destroyed garrison 22731 | -3/Garrison | Accompanied by 6 allies 22966 | -3/Garrison | X0-1V1 activates XOMVISION 22996 | -3/Garrison | Build established: Botlord-Tank 23069 | -3/Garrison | Discovered new exit (range 14) 23244 | -3/Garrison | Discovered new exit (range 6) 23301 | -3/Garrison | Discovered new exit (range 11) 23313 | -3/Garrison | Identified exit to Research 23313 | -3/Garrison | X0-1V1 revealed exit location to -2/Research 23315 | -3/Garrison | Rewired B-90 Cyclops 23492 | -3/Garrison | Expanded RIF knowledge: Autoassimilate 23532 | -3/Garrison | Rewired Striker 23534 | -3/Garrison | Rewired Striker 23647 | -3/Garrison | Entered Research 23647 | -3/Research | Accompanied by 10 allies 23719 | -3/Research | Identified exit to Garrison 23745 | -3/Research | Central database locked down 23750 | -3/Research | X0-1V1 activates XOMVISION 23809 | -3/Research | X0-1V1 sent you to a vault 23829 | -3/Research | Found Prototype Device 23829 | -3/Research | Identified Chronowheel 23829 | -3/Research | Activated Chronowheel 23829 | -3/Research | Spacetime reconverged on an earlier point 23831 | -3/Research | Found Prototype Slashing Weapon 23831 | -3/Research | Identified Hvy. Scimitar of Distortion 23836 | -3/Research | Found Prototype Device 23836 | -3/Research | Identified Exp. Weapon Cycler 24010 | -3/Research | Identified exit to Garrison 24111 | -3/Research | Found Vortex Chain Reactor 24136 | -3/Research | Discovered exit to Research (range 11) 24167 | -3/Research | Entered Garrison 24167 | -3/Garrison | Accompanied by 1 ally 24197 | -3/Garrison | X0-1V1 revealed exit location to -2/Research 24271 | -3/Garrison | Triggered checkpoint 24400 | -3/Garrison | Triggered checkpoint 24401 | -3/Garrison | Triggered checkpoint 24418 | -3/Garrison | Spotted B-86 Titan 24449 | -3/Garrison | Destroyed B-86 Titan 24474 | -3/Garrison | Lost 6 allies 24499 | -3/Garrison | Triggered checkpoint 24508 | -3/Garrison | Garrison Relay disabled 24532 | -3/Garrison | Found Adv. Powered Armor 24535 | -3/Garrison | Found Adv. Powered Armor 24540 | -3/Garrison | Found Adv. Powered Armor 24544 | -3/Garrison | Found Adv. Powered Armor 24607 | -3/Garrison | Triggered checkpoint 24647 | -3/Garrison | Triggered checkpoint 24688 | -3/Garrison | Rescued a captive Derelict 24718 | -3/Garrison | Expanded RIF knowledge: Threat Obfuscation 24719 | -3/Garrison | Triggered checkpoint 24877 | -3/Garrison | Garrison Relay disabled 24957 | -3/Garrison | Discovered exit to Research (range 15) 24979 | -3/Garrison | H-XX Assembler disabled 25137 | -3/Garrison | Triggered checkpoint 25316 | -3/Garrison | Discovered exit to Research (range 10) 25376 | -3/Garrison | X0-1V1 activates XOMVISION 25459 | -3/Garrison | Found Adv. Powered Armor 25604 | -3/Garrison | Entered Research 25604 | -2/Research | Accompanied by 10 allies 25604 | -2/Research | Evolved 2 slots: Utility x2 25740 | -2/Research | X0-1V1 activates XOMVISION 25900 | -2/Research | Spotted B-90 Cyclops 25903 | -2/Research | Assimilated Cyclops 9a with formatsys_high 26025 | -2/Research | Weapon slot count temporarily expanded by X0-1V1 (+2) 26038 | -2/Research | Allies destroyed Cyclops 9a 26084 | -2/Research | Discovered new exit (range 21) 26090 | -2/Research | Lost 6 allies 26189 | -2/Research | X0-1V1 enhanced Transport squad support 26292 | -2/Research | X0-1V1 rewrote Assassin 8c IFF filter 26354 | -2/Research | First assault squad dispatched 26361 | -2/Research | Spotted B-90 Cyclops 26364 | -2/Research | Assimilated Cyclops 9b with formatsys_high 26450 | -2/Research | Assimilated Heavy ARC 9a with formatsys_deep 26568 | -2/Research | Garrison activated, responded to threat 26589 | -2/Research | Spotted B-90 Cyclops 26592 | -2/Research | Assimilated Cyclops 9c with formatsys_high 26610 | -2/Research | Identified exit to Garrison 26613 | -2/Research | Entered Garrison 26613 | -2/Garrison | Accompanied by 8 allies 26614 | -2/Garrison | Lost 3 allies 26637 | -2/Garrison | Expanded RIF knowledge: Hotswap 26659 | -2/Garrison | Triggered checkpoint 26672 | -2/Garrison | Garrison Relay disabled 26686 | -2/Garrison | Identified exit to Testing 26686 | -2/Garrison | X0-1V1 revealed exit location to -2/Testing 26747 | -2/Garrison | Spotted B-90 Cyclops 26752 | -2/Garrison | Assimilated Cyclops 9d with formatsys_high 26755 | -2/Garrison | Triggered checkpoint 26759 | -2/Garrison | Triggered checkpoint 26760 | -2/Garrison | Triggered checkpoint 26800 | -2/Garrison | Lost 5 allies 26905 | -2/Garrison | Triggered checkpoint 26941 | -2/Garrison | Garrison Relay disabled 26983 | -2/Garrison | Discovered exit to Testing (range 15) 27008 | -2/Garrison | Garrison Relay disabled 27111 | -2/Garrison | Triggered checkpoint 27149 | -2/Garrison | Spotted B-90 Cyclops 27155 | -2/Garrison | Assimilated Cyclops 9e with formatsys_high 27259 | -2/Garrison | Entered Testing 27259 | -2/Testing | Accompanied by 11 allies 27392 | -2/Testing | Rewired PY-LPS6LN1YO2 27461 | -2/Testing | Lost 9 allies 27509 | -2/Testing | First assault squad dispatched 27568 | -2/Testing | Identified exit to Garrison 27581 | -2/Testing | Entered Garrison 27581 | -2/Garrison | Accompanied by 3 allies 27589 | -2/Garrison | Lost 3 allies 27629 | -2/Garrison | Expanded RIF knowledge: Autooverride 27673 | -2/Garrison | Triggered checkpoint 27689 | -2/Garrison | Triggered checkpoint 27690 | -2/Garrison | Spotted B-90 Cyclops 27690 | -2/Garrison | Triggered checkpoint 27694 | -2/Garrison | Assimilated Cyclops 9f with formatsys_high 27698 | -2/Garrison | Triggered checkpoint 27721 | -2/Garrison | X0-1V1 rewrote Cyclops 9f IFF filter 27756 | -2/Garrison | Identified exit to Access 27756 | -2/Garrison | X0-1V1 revealed exit location to -1/Access 27765 | -2/Garrison | Lost 9 allies 27992 | -2/Garrison | Garrison Relay disabled 28142 | -2/Garrison | Garrison Relay disabled 28246 | -2/Garrison | Discovered exit to Access (range 12) 28263 | -2/Garrison | Rescued a captive Derelict 28352 | -2/Garrison | Found embedded Infiltrators 28371 | -2/Garrison | Discovered exit to Access (range 10) 28393 | -2/Garrison | Triggered checkpoint 28411 | -2/Garrison | Garrison Relay disabled 28617 | -2/Garrison | Triggered checkpoint 28632 | -2/Garrison | Garrison Relay disabled 28810 | -2/Garrison | Core integrity restored by X0-1V1 (+240) 28837 | -2/Garrison | Entered Access 28837 | -1/Access | Accompanied by 10 allies 28837 | -1/Access | Evolved 2 slots: Utility x1, Weapon x1 28945 | -1/Access | X0-1V1 rewrote Warden 9b IFF filter 29039 | -1/Access | X0-1V1 destroyed Energy Cycler 29039 | -1/Access | Energy Cycler disabled 29180 | -1/Access | Assimilated ARC 10a with formatsys_deep 29234 | -1/Access | Garrison activated, responded to threat 29256 | -1/Access | Lost 4 allies 29444 | -1/Access | Identified exit to Garrison 29456 | -1/Access | Entered Garrison 29456 | -1/Garrison | Accompanied by 10 allies 29469 | -1/Garrison | Found embedded Infiltrators 29483 | -1/Garrison | Garrison Relay disabled 29498 | -1/Garrison | Triggered checkpoint 29669 | -1/Garrison | Triggered checkpoint 29679 | -1/Garrison | Spotted B-99 Colossus 29682 | -1/Garrison | Triggered checkpoint 29691 | -1/Garrison | Triggered checkpoint 29701 | -1/Garrison | Allies destroyed B-99 Colossus 29718 | -1/Garrison | Triggered checkpoint 29842 | -1/Garrison | Lost 3 allies 29905 | -1/Garrison | Discovered new exit (range 5) 29930 | -1/Garrison | Triggered checkpoint 29955 | -1/Garrison | Rescued a captive Derelict 29958 | -1/Garrison | Rescued a captive Derelict 30060 | -1/Garrison | Spotted Striker 30060 | -1/Garrison | Spotted Striker 30070 | -1/Garrison | Destroyed Striker 30077 | -1/Garrison | Allies destroyed Striker 30107 | -1/Garrison | Expanded RIF knowledge: Coupler Efficiency 30122 | -1/Garrison | Discovered new exit (range 11) 30128 | -1/Garrison | Triggered checkpoint 30154 | -1/Garrison | Spotted B-86 Titan 30166 | -1/Garrison | Allies destroyed B-86 Titan 30176 | -1/Garrison | Rewired B-90 Cyclops 30250 | -1/Garrison | Spotted B-99 Colossus 30251 | -1/Garrison | Autoassimilated Colossus 10a with RIF 30278 | -1/Garrison | Found Relay Coupler [Proto] 30282 | -1/Garrison | Found Relay Coupler [Proto] 30309 | -1/Garrison | Lost 3 allies 30412 | -1/Garrison | Entered Access 30412 | -1/Access | Accompanied by 19 allies 30662 | -1/Access | First assault squad dispatched 30666 | -1/Access | Identified exit to Command 30666 | -1/Access | X0-1V1 revealed exit location to -1/Command 30924 | -1/Access | X0-1V1 rewrote Warden 10c IFF filter 31363 | -1/Access | System corruption reached 10% 31390 | -1/Access | High security lockdown imminent 31470 | -1/Access | High security lockdown engaged 31502 | -1/Access | Energy Cycler disabled 31543 | -1/Access | Spotted B-99 Colossus 31547 | -1/Access | Spotted B-99 Colossus 31548 | -1/Access | Assimilated Colossus 10b with formatsys_high 31549 | -1/Access | Assimilated Colossus 10c with formatsys_high 31586 | -1/Access | Spotted Executioner 31586 | -1/Access | Spotted Striker 31586 | -1/Access | Garrison activated, responded to threat 31600 | -1/Access | Allies destroyed Executioner 31605 | -1/Access | Entered Command 31605 | -1/Command | Accompanied by 2 allies 31637 | -1/Command | Lost 17 allies 31756 | -1/Command | X0-1V1 activates XOMVISION 31855 | -1/Command | First assault squad dispatched 31908 | -1/Command | Assimilated Heavy ARC 10a with formatsys_deep 31986 | -1/Command | Lost 3 allies 32063 | -1/Command | Spotted M Guard 32063 | -1/Command | Spotted M Guard 32063 | -1/Command | Spotted Combat Programmer 32075 | -1/Command | Spotted Combat Programmer 32082 | -1/Command | X0-1V1 whisked you away to safety 32100 | -1/Command | Lost 5 allies 32232 | -1/Command | Spotted Alpha 7 32233 | -1/Command | Autoassimilated Alpha 7 with RIF 32282 | -1/Command | Identified exit to Access_0 32282 | -1/Command | X0-1V1 revealed exit location to -1/Access_0 32345 | -1/Command | Destroyed Combat Programmer 32360 | -1/Command | Lost 3 parts (1p1u1w) 32368 | -1/Command | Destroyed Combat Programmer 32396 | -1/Command | X0-1V1 turns hostiles against one another 32403 | -1/Command | Assimilated M Guard with formatsys_high 32452 | -1/Command | Destroyed M Guard 32474 | -1/Command | Lost 12 parts (1p2n8u1w) 32631 | -1/Command | Build established: Botlord-Mutant 32634 | -1/Command | Met MAIN.C 32691 | -1/Command | Identified exit to Surface 32691 | -1/Command | X0-1V1 revealed exit location to -0/Surface 32695 | -1/Command | X0-1V1 sent you to a vault 32697 | -1/Command | Lost 3 parts (1n1u1w) 32706 | -1/Command | Released all parts (11) 32707 | -1/Command | Spotted B-99 Colossus 32712 | -1/Command | Core integrity fell below 50% 32889 | -1/Command | Interfaced with 0b10 Conduit 32889 | *** | Assimilated 0b10! Last Messages --------------- 32798_ System corrupted: Energy discharge (-108). 32810_ Acquired 44 matter. 32811_ K-01 Serf collects debris. 32815_ The unstable cave ceiling collapses. 32816_ System corrupted: Matter fused (-6). 32816_ K-01 Serf collects debris. 32818_ The unstable cave ceiling collapses. 32842_ X0-1V1 sends the all clear message. (reinforcement recalled) 32853_ ZEPPQ&CGECOXR2XEZGAPKC,GK6C 32853_ K-01 Serf collects debris. 32864_ X0-1V1 manipulates the space around you (+46% TH resistance). 32865_ X0-1V1: "What are these fools even fielding?" M Guard owns a shiny new Sfc. Door Spiker. 32866_ X0-1V1 makes it rain matter. 32870_ Acquired 18 matter. 32870_ Acquired 8 matter. 32889_ Interfacing with system... 32889_ Overriding active MAIN.C lock. [Achievement: MAIN.CPP] [Achievement: One Last FU] Map ----- +----------------------------------------------------+ | # ######################################### | | # ######################################### | | # ######################################### | | ################################################ | | #+################################################ | | # ######################################### | | # ######################################### | | # ######################################### | | # ######################################### | | # ######################################### | | + "######################################### | | # ""######################################### | | # ""######################################### | | # ""######################################### | | # ""#####""""""" """" ############### | | + T"#####"" "" ############### | | # ""#####""""" "" ############### | | # ""#####""""""""""" + | | # ""#####" " """ ; | | # ""#####"" """""" ; | | # "#####"" """""" ############### | | + ##### " """""" ############### | | # ##### " "" ############### | | #+####+####### " " ""############### | | ### ######""""""""" """""""############### | | ### ######"" @"""""""""############### | | ### ###### """""""""""############### | | ### ###### " " " " ############### | | ### ###### " " " " ############### | | """ " " " """" " ############### | | """ """ " " """" ############### | | """ " " " " ############### | | ##/########### """""""""" " ############### | | ####### " """ " """"""""############### | | ####### """ " " " ############### | | ########################################### | | ########################################### | | ################################################## | | ############################################ | | ############################################ | | ""########################################## | | ""########################################## | | ""########################################## | | T########################################## | | ""########################################## | | ""########################################## | | ""########################################## | | ############################################ | | ################################# | | T################################# | +----------------------------------------------------+ Best States ------------- Heat Dissipation 178 Energy Generation 70 Energy Capacity 2650 Matter Stores 1100 Matter Capacity 1100 Sight Range 22 Terrain Scan Density 10 Power Amplification 30 Armor Coverage 1025 Resistance: KI 30 Resistance: TH 46 Propulsion Shielding 66 Utility Shielding 66 Point Defense Rating 480 Weapon Cycling 30 Evasion (%) 55 Recoil Reduction 3 Kinecelleration 50 Offensive Hacking 10 Defensive Hacking 10 Relay Coupler Types 7 Relay Coupler Value 377 Item Schematics ----------------- Exp. Thermal Shield | -2/Testing | Archive Cld. Impulse Thruster | -2/Testing | Archive Helical Railgun | -2/Testing | Archive Robot Schematics ------------------ X-87 Electro | -2/Testing | Archive Fabricated ------------ Nothing Repaired ---------- Hvy. Mass Driver | 38% | -5/Factory Studied --------- Com. Wheel | -9/Materials | Hacked Arm. Wheel | -8/Materials | Hacked Arm. Huge Wheel | -7/Factory | Hacked Remote Datajack | -7/Factory | Hacked Imp. Deuterium Engine | -7/Factory | Hacked Rocket Launcher | -7/Factory | Hacked Wheel | -7/Factory | Hacked Imp. Remote Datajack | -4/Factory | Hacked Hvy. Linear Accelerator | -3/Research | Hacked Hyb. Antimatter Reactor | -3/Research | Hacked Centrium Wheel | -3/Research | Hacked Particle Reactor | -3/Research | Hacked Alien Tech Used ----------------- None Achievements -------------- MAIN.CPP One Last FU Spacetime Is Relative Challenges ------------ None Game ------ Seed ZeronetArcWheel Manual? 0 Play Time 06:09:03 Cumulative 515.4 hours Start 2026.07.26 @ 06:38:08 End 2026.07.26 @ 14:02:58 Sessions 1 Manual Loads 0 Difficulty Rogue Special Mode None Game No. 260 Rogue 260 Adventurer 0 Explorer 0 Win Type 4 Total 17 Types 10/0/2/1/1/0/0/1/0/2 Lore% 86 Gallery% 81 Achievement% 70 Wizard Run 0 Options --------- Layout 0 ASCII 0 Keyboard 0 Movement Mouse Keybinds 0 Fullscreen 1 Font 18/SmallcapsGlow Map View 76x50 Zoom Use 0% Tactical HUD 1 Map Filters NONE Filters NONE Steam 1 RUN: 58e33c2a-6e11-49a8-94c9-8231f978adef